Workbook

Sheet January
B2: Клиенты Участников торгов Фондовой биржи ММВБ
B3: 2016-01-31
B6: Динамика количества клиентов за | C6: =B3 -> 2016-01-31
B10: Количество зарегистрированных клиентов в Системе торгов (по состоянию на последний день месяца): | H10: Таблица 1
B11: Группы клиентов | E11: =EDATE(B3,-1) -> 2015-12-31 | F11: =B3 -> 2016-01-31 | G11: Изменение (ед.) | H11: Изменение (%)
B12: Физические лица | E12: 1296101 | F12: 1307886 | G12: =F12-E12 -> 11785 | H12: =F12/E12-1 -> 0.009092655588
B13: Юридические лица | E13: 34512 | F13: 34500 | G13: =F13-E13 -> -12 | H13: -0.000347705146
B14: Иностранные лица | E14: 13405 | F14: 13437 | G14: 32 | H14: 0.002387168967
B15: Иностранные физические лица | E15: 4571 | F15: 4650 | G15: 79 | H15: 0.01728287027
B16: Иностранные юридические лица | E16: 8834 | F16: 8787 | G16: -47 | H16: -0.005320353181
B17: Клиенты, передавшие свои средства в ДУ | E17: 16540 | F17: 15249 | G17: -1291 | H17: -0.07805320435
B18: Всего | E18: 1360558 | F18: 1371072 | G18: 10514 | H18: 0.007727711718
B21: Количество уникальных клиентов в Системе торгов (по состоянию на последний день месяца): | H21: Таблица 2
B22: Группы клиентов | E22: =E11 -> 2015-12-31 | F22: =F11 -> 2016-01-31 | G22: Изменение (ед.) | H22: Изменение (%)
B23: Физические лица | E23: 1006751 | F23: 1012875 | G23: =F23-E23 -> 6124 | H23: =F23/E23-1 -> 0.006082934112
B24: Юридические лица | E24: 20753 | F24: 20804 | G24: =F24-E24 -> 51 | H24: =F24/E24-1 -> 0.002457476028
B25: Иностранные лица | E25: 8729 | F25: 8764 | G25: 35 | H25: 0.004009623095
B26: Иностранные физические лица | E26: 4315 | F26: 4377 | G26: 62 | H26: 0.01436848204
B27: Иностранные юридические лица | E27: 4414 | F27: 4387 | G27: -27 | H27: -0.00611690077
B28: Клиенты, передавшие свои средства в ДУ | E28: 3836 | F28: 3848 | G28: 12 | H28: 0.003128258603
B29: Всего | E29: 1040069 | F29: 1046291 | G29: 6222 | H29: 0.005982295405
B32: Количество активных клиентов в Системе торгов (совершивших в течение месяца хотя бы одну сделку): | H32: Таблица 3
B33: Группы клиентов | E33: =E11 -> 2015-12-31 | F33: =F11 -> 2016-01-31 | G33: Изменение (ед.) | H33: Изменение (%)
B34: Физические лица | E34: 74911 | F34: 71231 | G34: =F34-E34 -> -3680 | H34: =F34/E34-1 -> -0.04912496162
B35: Юридические лица | E35: 1188 | F35: 927 | G35: -261 | H35: -0.2196969697
B36: Иностранные лица | E36: 659 | F36: 567 | G36: -92 | H36: -0.1396054628
B37: Иностранные физические лица | E37: 305 | F37: 264 | G37: -41 | H37: -0.1344262295
B38: Иностранные юридические лица | E38: 354 | F38: 303 | G38: -51 | H38: -0.1440677966
B39: Клиенты, передавшие свои средства в ДУ | E39: 474 | F39: 497 | G39: 23 | H39: 0.04852320675
B40: Всего | E40: 77232 | F40: 73222 | G40: -4010 | H40: -0.05192148332
B44: Изменение количества уникальных клиентов - ретроспективные данные
B48: Количество уникальных клиентов в Системе торгов (по состоянию на последний день месяца) (ежегодная статистика): | H48: Таблица 1
B49: Группы клиентов | E49: 2011-12-31 | F49: 2012-12-31 | G49: 2013-12-31 | H49: 2014-12-31 | I49: 2015-12-31
B50: Физические лица | E50: 772175 | F50: 805549 | G50: 881844 | H50: 944559 | I50: 1006751
B51: Юридические лица | E51: 16850 | F51: 17821 | G51: 19539 | H51: 20178 | I51: 20753
B52: Иностранные лица | E52: 5058 | F52: 5876 | G52: 6957 | H52: 7486 | I52: 8729
B53: Клиенты, передавшие свои средства в ДУ | E53: 5242 | F53: 5261 | G53: 5182 | H53: 5142 | I53: 3836
B54: Всего | E54: 799325 | F54: 834507 | G54: 913522 | H54: 977365 | I54: 1040069
B82: Количество уникальных клиентов в Системе торгов (по состоянию на последний день месяца) (за последние 6 месяцев): | H82: Таблица 2
B83: Группы клиентов | C83: =EDATE(D83,-1) -> 2015-08-30 | D83: =EDATE(E83,-1) -> 2015-09-30 | E83: =EDATE(F83,-1) -> 2015-10-30 | F83: =EDATE(G83,-1) -> 2015-11-30 | G83: =EDATE(H83,-1) -> 2015-12-31 | H83: =EDATE(E11,1) -> 2016-01-31
B84: Физические лица | C84: 991257 | D84: 993268 | E84: 996118 | F84: 1001556 | G84: 1006751 | H84: 1012875
B85: Юридические лица | C85: 20981 | D85: 21072 | E85: 20973 | F85: 21007 | G85: 20753 | H85: 20804
B86: Иностранные лица | C86: 8602 | D86: 8775 | E86: 8894 | F86: 8699 | G86: 8729 | H86: 8764
B87: Клиенты, передавшие свои средства в ДУ | C87: 4694 | D87: 4323 | E87: 4266 | F87: 4148 | G87: 3836 | H87: 3848
B88: Всего | C88: 1025534 | D88: 1027438 | E88: 1030251 | F88: 1035410 | G88: 1040069 | H88: 1046291
B124: Дополнительные показатели за | C124: =B3 -> 2016-01-31
H127: Таблица 1
B128: Участники торгов | G128: Абсолютные показатели
B129: Количество Участников торгов, имеющих активных клиентов | G129: 378
B133: Списки ведущих операторов фондового рынка - клиенты Участников торгов за | F133: =C6 -> 2016-01-31
B136: Ведущие операторы рынка – число зарегистрированных клиентов | H136: Таблица 1
B137: (по общему количеству уникальных клиентов всех типов, зарегистрированных в системе торгов биржи, в том числе в течение месяца)
B138: Наименование Участника торгов | G138: Количество клиентов
B139: ВТБ 24 (ПАО) | C139: ВТБ 24 (ПАО) | D139: ВТБ 24 (ПАО) | E139: ВТБ 24 (ПАО) | F139: ВТБ 24 (ПАО) | G139: 229110 | H139: 229110
B140: Сбербанк | C140: Сбербанк | D140: Сбербанк | E140: Сбербанк | F140: Сбербанк | G140: 181253 | H140: 181253
B141: ФГ БКС | C141: ФГ БКС | D141: ФГ БКС | E141: ФГ БКС | F141: ФГ БКС | G141: 142758 | H141: 142758
B142: АО "ФИНАМ" | C142: АО "ФИНАМ" | D142: АО "ФИНАМ" | E142: АО "ФИНАМ" | F142: АО "ФИНАМ" | G142: 141515 | H142: 141515
B143: ФГ "ОТКРЫТИЕ" | C143: ФГ "ОТКРЫТИЕ" | D143: ФГ "ОТКРЫТИЕ" | E143: ФГ "ОТКРЫТИЕ" | F143: ФГ "ОТКРЫТИЕ" | G143: 72558 | H143: 72558
B144: АО "АЛЬФА-БАНК" | C144: АО "АЛЬФА-БАНК" | D144: АО "АЛЬФА-БАНК" | E144: АО "АЛЬФА-БАНК" | F144: АО "АЛЬФА-БАНК" | G144: 60891 | H144: 60891
B145: ООО "АТОН" | C145: ООО "АТОН" | D145: ООО "АТОН" | E145: ООО "АТОН" | F145: ООО "АТОН" | G145: 48052 | H145: 48052
B146: АЛОР БРОКЕР | C146: АЛОР БРОКЕР | D146: АЛОР БРОКЕР | E146: АЛОР БРОКЕР | F146: АЛОР БРОКЕР | G146: 32150 | H146: 32150
B147: КИТ Финанс (ООО) | C147: КИТ Финанс (ООО) | D147: КИТ Финанс (ООО) | E147: КИТ Финанс (ООО) | F147: КИТ Финанс (ООО) | G147: 20933 | H147: 20933
B148: ООО "Инвестиционная палата" | C148: ООО "Инвестиционная палата" | D148: ООО "Инвестиционная палата" | E148: ООО "Инвестиционная палата" | F148: ООО "Инвестиционная палата" | G148: 19850 | H148: 19850
B151: Ведущие операторы рынка – число активных клиентов | H151: Таблица 2
B152: (по количеству уникальных клиентов, совершивших хотя бы одну сделку за месяц)
B153: Наименование Участника торгов | G153: Количество клиентов
B154: Сбербанк | C154: Сбербанк | D154: Сбербанк | E154: Сбербанк | F154: Сбербанк | G154: 12692 | H154: 12692
B155: АО "ФИНАМ" | C155: АО "ФИНАМ" | D155: АО "ФИНАМ" | E155: АО "ФИНАМ" | F155: АО "ФИНАМ" | G155: 10935 | H155: 10935
B156: ФГ БКС | C156: ФГ БКС | D156: ФГ БКС | E156: ФГ БКС | F156: ФГ БКС | G156: 10811 | H156: 10811
B157: ВТБ 24 (ПАО) | C157: ВТБ 24 (ПАО) | D157: ВТБ 24 (ПАО) | E157: ВТБ 24 (ПАО) | F157: ВТБ 24 (ПАО) | G157: 10728 | H157: 10728
B158: ФГ "ОТКРЫТИЕ" | C158: ФГ "ОТКРЫТИЕ" | D158: ФГ "ОТКРЫТИЕ" | E158: ФГ "ОТКРЫТИЕ" | F158: ФГ "ОТКРЫТИЕ" | G158: 7577 | H158: 7577
B159: АО "АЛЬФА-БАНК" | C159: АО "АЛЬФА-БАНК" | D159: АО "АЛЬФА-БАНК" | E159: АО "АЛЬФА-БАНК" | F159: АО "АЛЬФА-БАНК" | G159: 4107 | H159: 4107
B160: ООО "АТОН" | C160: ООО "АТОН" | D160: ООО "АТОН" | E160: ООО "АТОН" | F160: ООО "АТОН" | G160: 2929 | H160: 2929
B161: Банк ГПБ (АО) | C161: Банк ГПБ (АО) | D161: Банк ГПБ (АО) | E161: Банк ГПБ (АО) | F161: Банк ГПБ (АО) | G161: 2168 | H161: 2168
B162: ПАО "Промсвязьбанк" | C162: ПАО "Промсвязьбанк" | D162: ПАО "Промсвязьбанк" | E162: ПАО "Промсвязьбанк" | F162: ПАО "Промсвязьбанк" | G162: 1406 | H162: 1406
B163: КИТ Финанс (ООО) | C163: КИТ Финанс (ООО) | D163: КИТ Финанс (ООО) | E163: КИТ Финанс (ООО) | F163: КИТ Финанс (ООО) | G163: 1353 | H163: 1353
B166: Ведущие операторы рынка – объем клиентских операций | H166: Таблица 3
B167: (по стоимостному объему сделок, заключенных в интересах клиентов за месяц)
B168: Наименование Участника торгов | G168: Торговый оборот, руб.
B169: ООО "Ренессанс Брокер" | C169: ООО "Ренессанс Брокер" | D169: ООО "Ренессанс Брокер" | E169: ООО "Ренессанс Брокер" | F169: ООО "Ренессанс Брокер" | G169: 1.128359355e+12 | H169: 1.128359355e+12
B170: ФГ БКС | C170: ФГ БКС | D170: ФГ БКС | E170: ФГ БКС | F170: ФГ БКС | G170: 9.10468476e+11 | H170: 9.10468476e+11
B171: ФГ "ОТКРЫТИЕ" | C171: ФГ "ОТКРЫТИЕ" | D171: ФГ "ОТКРЫТИЕ" | E171: ФГ "ОТКРЫТИЕ" | F171: ФГ "ОТКРЫТИЕ" | G171: 7.757678795e+11 | H171: 7.757678795e+11
B172: Сбербанк | C172: Сбербанк | D172: Сбербанк | E172: Сбербанк | F172: Сбербанк | G172: 5.748131432e+11 | H172: 5.748131432e+11
B173: ПАО "Промсвязьбанк" | C173: ПАО "Промсвязьбанк" | D173: ПАО "Промсвязьбанк" | E173: ПАО "Промсвязьбанк" | F173: ПАО "Промсвязьбанк" | G173: 2.652287547e+11 | H173: 2.652287547e+11
B174: АО "ФИНАМ" | C174: АО "ФИНАМ" | D174: АО "ФИНАМ" | E174: АО "ФИНАМ" | F174: АО "ФИНАМ" | G174: 2.417532116e+11 | H174: 2.417532116e+11
B175: ООО "ИФК "МЕТРОПОЛЬ" | C175: ООО "ИФК "МЕТРОПОЛЬ" | D175: ООО "ИФК "МЕТРОПОЛЬ" | E175: ООО "ИФК "МЕТРОПОЛЬ" | F175: ООО "ИФК "МЕТРОПОЛЬ" | G175: 2.33442393e+11 | H175: 2.33442393e+11
B176: ООО "ИК ВЕЛЕС Капитал" | C176: ООО "ИК ВЕЛЕС Капитал" | D176: ООО "ИК ВЕЛЕС Капитал" | E176: ООО "ИК ВЕЛЕС Капитал" | F176: ООО "ИК ВЕЛЕС Капитал" | G176: 1.805678685e+11 | H176: 1.805678685e+11
B177: ЗАО "БАНК КРЕДИТ СВИСС (МОСКВА)" | C177: ЗАО "БАНК КРЕДИТ СВИСС (МОСКВА)" | D177: ЗАО "БАНК КРЕДИТ СВИСС (МОСКВА)" | E177: ЗАО "БАНК КРЕДИТ СВИСС (МОСКВА)" | F177: ЗАО "БАНК КРЕДИТ СВИСС (МОСКВА)" | G177: 1.529156532e+11 | H177: 1.529156532e+11
B178: ООО "АТОН" | C178: ООО "АТОН" | D178: ООО "АТОН" | E178: ООО "АТОН" | F178: ООО "АТОН" | G178: 1.491666426e+11 | H178: 1.491666426e+11

Sheet February
B2: Клиенты Участников торгов Фондовой биржи ММВБ
B3: 2016-02-29
B6: Динамика количества клиентов за | C6: =B3 -> 2016-02-29
B10: Количество зарегистрированных клиентов в Системе торгов (по состоянию на последний день месяца): | H10: Таблица 1
B11: Группы клиентов | E11: =EDATE(B3,-1) -> 2016-01-29 | F11: =B3 -> 2016-02-29 | G11: Изменение (ед.) | H11: Изменение (%)
B12: Физические лица | E12: =January!F12 -> 1307886 | F12: 1299435 | G12: =F12-E12 -> -8451 | H12: =F12/E12-1 -> -0.006461572339
B13: Юридические лица | E13: =January!F13 -> 34500 | F13: 30184 | G13: =F13-E13 -> -4316 | H13: -0.1251014493
B14: Иностранные лица | E14: =January!F14 -> 13437 | F14: 13261 | G14: -176 | H14: -0.01309816179
B15: Иностранные физические лица | E15: =January!F15 -> 4650 | F15: 5006 | G15: 356 | H15: 0.07655913978
B16: Иностранные юридические лица | E16: =January!F16 -> 8787 | F16: 8255 | G16: -532 | H16: -0.06054398543
B17: Клиенты, передавшие свои средства в ДУ | E17: =January!F17 -> 15249 | F17: 14108 | G17: -1141 | H17: -0.07482457866
B18: Всего | E18: =January!F18 -> 1371072 | F18: 1356988 | G18: -14084 | H18: -0.01027225412
B21: Количество уникальных клиентов в Системе торгов (по состоянию на последний день месяца): | H21: Таблица 2
B22: Группы клиентов | E22: =E11 -> 2016-01-29 | F22: =F11 -> 2016-02-29 | G22: Изменение (ед.) | H22: Изменение (%)
B23: Физические лица | E23: =January!F23 -> 1012875 | F23: 1006765 | G23: =F23-E23 -> -6110 | H23: =F23/E23-1 -> -0.006032333704
B24: Юридические лица | E24: =January!F24 -> 20804 | F24: 18908 | G24: =F24-E24 -> -1896 | H24: =F24/E24-1 -> -0.09113631994
B25: Иностранные лица | E25: =January!F25 -> 8764 | F25: 8657 | G25: -107 | H25: -0.01220903697
B26: Иностранные физические лица | E26: =January!F26 -> 4377 | F26: 4697 | G26: 320 | H26: 0.07310943569
B27: Иностранные юридические лица | E27: =January!F27 -> 4387 | F27: 3960 | G27: -427 | H27: -0.09733302941
B28: Клиенты, передавшие свои средства в ДУ | E28: =January!F28 -> 3848 | F28: 2930 | G28: -918 | H28: -0.2385654886
B29: Всего | E29: =January!F29 -> 1046291 | F29: 1037260 | G29: -9031 | H29: -0.008631441922
B32: Количество активных клиентов в Системе торгов (совершивших в течение месяца хотя бы одну сделку): | H32: Таблица 3
B33: Группы клиентов | E33: =E11 -> 2016-01-29 | F33: =F11 -> 2016-02-29 | G33: Изменение (ед.) | H33: Изменение (%)
B34: Физические лица | E34: =January!F34 -> 71231 | F34: 73550 | G34: =F34-E34 -> 2319 | H34: =F34/E34-1 -> 0.03255605003
B35: Юридические лица | E35: =January!F35 -> 927 | F35: 1044 | G35: 117 | H35: 0.1262135922
B36: Иностранные лица | E36: =January!F36 -> 567 | F36: 642 | G36: 75 | H36: 0.1322751323
B37: Иностранные физические лица | E37: =January!F37 -> 264 | F37: 318 | G37: 54 | H37: 0.2045454545
B38: Иностранные юридические лица | E38: =January!F38 -> 303 | F38: 324 | G38: 21 | H38: 0.06930693069
B39: Клиенты, передавшие свои средства в ДУ | E39: =January!F39 -> 497 | F39: 554 | G39: 57 | H39: 0.1146881288
B40: Всего | E40: =January!F40 -> 73222 | F40: 75790 | G40: 2568 | H40: 0.03507142662
B44: Изменение количества уникальных клиентов - ретроспективные данные
B48: Количество уникальных клиентов в Системе торгов (по состоянию на последний день месяца) (ежегодная статистика): | H48: Таблица 1
B49: Группы клиентов | E49: 2011-12-31 | F49: 2012-12-31 | G49: 2013-12-31 | H49: 2014-12-31 | I49: 2015-12-31
B50: Физические лица | E50: 772175 | F50: 805549 | G50: 881844 | H50: 944559 | I50: 1006751
B51: Юридические лица | E51: 16850 | F51: 17821 | G51: 19539 | H51: 20178 | I51: 20753
B52: Иностранные лица | E52: 5058 | F52: 5876 | G52: 6957 | H52: 7486 | I52: 8729
B53: Клиенты, передавшие свои средства в ДУ | E53: 5242 | F53: 5261 | G53: 5182 | H53: 5142 | I53: 3836
B54: Всего | E54: 799325 | F54: 834507 | G54: 913522 | H54: 977365 | I54: 1040069
B82: Количество уникальных клиентов в Системе торгов (по состоянию на последний день месяца) (за последние 6 месяцев): | H82: Таблица 2
B83: Группы клиентов | C83: =EDATE(D83,-1) -> 2015-09-29 | D83: =EDATE(E83,-1) -> 2015-10-29 | E83: =EDATE(F83,-1) -> 2015-11-29 | F83: =EDATE(G83,-1) -> 2015-12-29 | G83: =EDATE(H83,-1) -> 2016-01-29 | H83: =EDATE(E11,1) -> 2016-02-29
B84: Физические лица | C84: 993268 | D84: 996118 | E84: 1001556 | F84: 1006751 | G84: 1012875 | H84: 1006765
B85: Юридические лица | C85: 21072 | D85: 20973 | E85: 21007 | F85: 20753 | G85: 20804 | H85: 18908
B86: Иностранные лица | C86: 8775 | D86: 8894 | E86: 8699 | F86: 8729 | G86: 8764 | H86: 8657
B87: Клиенты, передавшие свои средства в ДУ | C87: 4323 | D87: 4266 | E87: 4148 | F87: 3836 | G87: 3848 | H87: 2930
B88: Всего | C88: 1027438 | D88: 1030251 | E88: 1035410 | F88: 1040069 | G88: 1046291 | H88: 1037260
B124: Дополнительные показатели за | C124: =B3 -> 2016-02-29
H127: Таблица 1
B128: Участники торгов | G128: Абсолютные показатели
B129: Количество Участников торгов, имеющих активных клиентов | G129: 379
B133: Списки ведущих операторов фондового рынка - клиенты Участников торгов за | F133: =C6 -> 2016-02-29
B136: Ведущие операторы рынка – число зарегистрированных клиентов | H136: Таблица 1
B137: (по общему количеству уникальных клиентов всех типов, зарегистрированных в системе торгов биржи, в том числе в течение месяца)
B138: Наименование Участника торгов | G138: Количество клиентов
B139: ВТБ 24 (ПАО) | C139: ВТБ 24 (ПАО) | D139: ВТБ 24 (ПАО) | E139: ВТБ 24 (ПАО) | F139: ВТБ 24 (ПАО) | G139: 230467 | H139: 230467
B140: Сбербанк | C140: Сбербанк | D140: Сбербанк | E140: Сбербанк | F140: Сбербанк | G140: 182037 | H140: 182037
B141: АО "ФИНАМ" | C141: АО "ФИНАМ" | D141: АО "ФИНАМ" | E141: АО "ФИНАМ" | F141: АО "ФИНАМ" | G141: 145047 | H141: 145047
B142: ФГ БКС | C142: ФГ БКС | D142: ФГ БКС | E142: ФГ БКС | F142: ФГ БКС | G142: 145043 | H142: 145043
B143: ФГ "ОТКРЫТИЕ" | C143: ФГ "ОТКРЫТИЕ" | D143: ФГ "ОТКРЫТИЕ" | E143: ФГ "ОТКРЫТИЕ" | F143: ФГ "ОТКРЫТИЕ" | G143: 76490 | H143: 76490
B144: АО "АЛЬФА-БАНК" | C144: АО "АЛЬФА-БАНК" | D144: АО "АЛЬФА-БАНК" | E144: АО "АЛЬФА-БАНК" | F144: АО "АЛЬФА-БАНК" | G144: 61367 | H144: 61367
B145: ООО "АТОН" | C145: ООО "АТОН" | D145: ООО "АТОН" | E145: ООО "АТОН" | F145: ООО "АТОН" | G145: 48201 | H145: 48201
B146: АЛОР БРОКЕР | C146: АЛОР БРОКЕР | D146: АЛОР БРОКЕР | E146: АЛОР БРОКЕР | F146: АЛОР БРОКЕР | G146: 32267 | H146: 32267
B147: КИТ Финанс (ООО) | C147: КИТ Финанс (ООО) | D147: КИТ Финанс (ООО) | E147: КИТ Финанс (ООО) | F147: КИТ Финанс (ООО) | G147: 21036 | H147: 21036
B148: ООО "Инвестиционная палата" | C148: ООО "Инвестиционная палата" | D148: ООО "Инвестиционная палата" | E148: ООО "Инвестиционная палата" | F148: ООО "Инвестиционная палата" | G148: 19859 | H148: 19859
B151: Ведущие операторы рынка – число активных клиентов | H151: Таблица 2
B152: (по количеству уникальных клиентов, совершивших хотя бы одну сделку за месяц)
B153: Наименование Участника торгов | G153: Количество клиентов
B154: Сбербанк | C154: Сбербанк | D154: Сбербанк | E154: Сбербанк | F154: Сбербанк | G154: 13681 | H154: 13681
B155: ФГ БКС | C155: ФГ БКС | D155: ФГ БКС | E155: ФГ БКС | F155: ФГ БКС | G155: 11170 | H155: 11170
B156: АО "ФИНАМ" | C156: АО "ФИНАМ" | D156: АО "ФИНАМ" | E156: АО "ФИНАМ" | F156: АО "ФИНАМ" | G156: 11116 | H156: 11116
B157: ВТБ 24 (ПАО) | C157: ВТБ 24 (ПАО) | D157: ВТБ 24 (ПАО) | E157: ВТБ 24 (ПАО) | F157: ВТБ 24 (ПАО) | G157: 10956 | H157: 10956
B158: ФГ "ОТКРЫТИЕ" | C158: ФГ "ОТКРЫТИЕ" | D158: ФГ "ОТКРЫТИЕ" | E158: ФГ "ОТКРЫТИЕ" | F158: ФГ "ОТКРЫТИЕ" | G158: 7875 | H158: 7875
B159: АО "АЛЬФА-БАНК" | C159: АО "АЛЬФА-БАНК" | D159: АО "АЛЬФА-БАНК" | E159: АО "АЛЬФА-БАНК" | F159: АО "АЛЬФА-БАНК" | G159: 4262 | H159: 4262
B160: ООО "АТОН" | C160: ООО "АТОН" | D160: ООО "АТОН" | E160: ООО "АТОН" | F160: ООО "АТОН" | G160: 2937 | H160: 2937
B161: Банк ГПБ (АО) | C161: Банк ГПБ (АО) | D161: Банк ГПБ (АО) | E161: Банк ГПБ (АО) | F161: Банк ГПБ (АО) | G161: 2285 | H161: 2285
B162: ПАО "Промсвязьбанк" | C162: ПАО "Промсвязьбанк" | D162: ПАО "Промсвязьбанк" | E162: ПАО "Промсвязьбанк" | F162: ПАО "Промсвязьбанк" | G162: 1503 | H162: 1503
B163: КИТ Финанс (ООО) | C163: КИТ Финанс (ООО) | D163: КИТ Финанс (ООО) | E163: КИТ Финанс (ООО) | F163: КИТ Финанс (ООО) | G163: 1326 | H163: 1326
B166: Ведущие операторы рынка – объем клиентских операций | H166: Таблица 3
B167: (по стоимостному объему сделок, заключенных в интересах клиентов за месяц)
B168: Наименование Участника торгов | G168: Торговый оборот, руб.
B169: ООО "Ренессанс Брокер" | C169: ООО "Ренессанс Брокер" | D169: ООО "Ренессанс Брокер" | E169: ООО "Ренессанс Брокер" | F169: ООО "Ренессанс Брокер" | G169: 1.229411259e+12 | H169: 1.229411259e+12
B170: ФГ БКС | C170: ФГ БКС | D170: ФГ БКС | E170: ФГ БКС | F170: ФГ БКС | G170: 1.160833307e+12 | H170: 1.160833307e+12
B171: ФГ "ОТКРЫТИЕ" | C171: ФГ "ОТКРЫТИЕ" | D171: ФГ "ОТКРЫТИЕ" | E171: ФГ "ОТКРЫТИЕ" | F171: ФГ "ОТКРЫТИЕ" | G171: 8.182719251e+11 | H171: 8.182719251e+11
B172: Сбербанк | C172: Сбербанк | D172: Сбербанк | E172: Сбербанк | F172: Сбербанк | G172: 5.912533218e+11 | H172: 5.912533218e+11
B173: ООО "ИФК "МЕТРОПОЛЬ" | C173: ООО "ИФК "МЕТРОПОЛЬ" | D173: ООО "ИФК "МЕТРОПОЛЬ" | E173: ООО "ИФК "МЕТРОПОЛЬ" | F173: ООО "ИФК "МЕТРОПОЛЬ" | G173: 3.658840821e+11 | H173: 3.658840821e+11
B174: ПАО "Промсвязьбанк" | C174: ПАО "Промсвязьбанк" | D174: ПАО "Промсвязьбанк" | E174: ПАО "Промсвязьбанк" | F174: ПАО "Промсвязьбанк" | G174: 3.494808371e+11 | H174: 3.494808371e+11
B175: ООО "ИК ВЕЛЕС Капитал" | C175: ООО "ИК ВЕЛЕС Капитал" | D175: ООО "ИК ВЕЛЕС Капитал" | E175: ООО "ИК ВЕЛЕС Капитал" | F175: ООО "ИК ВЕЛЕС Капитал" | G175: 3.217384436e+11 | H175: 3.217384436e+11
B176: ООО "БК РЕГИОН" | C176: ООО "БК РЕГИОН" | D176: ООО "БК РЕГИОН" | E176: ООО "БК РЕГИОН" | F176: ООО "БК РЕГИОН" | G176: 2.727339168e+11 | H176: 2.727339168e+11
B177: АО "ФИНАМ" | C177: АО "ФИНАМ" | D177: АО "ФИНАМ" | E177: АО "ФИНАМ" | F177: АО "ФИНАМ" | G177: 2.55271472e+11 | H177: 2.55271472e+11
B178: ООО "АТОН" | C178: ООО "АТОН" | D178: ООО "АТОН" | E178: ООО "АТОН" | F178: ООО "АТОН" | G178: 2.49969985e+11 | H178: 2.49969985e+11

Sheet March
B2: Клиенты Участников торгов Фондовой биржи ММВБ
B3: 2016-03-31
B6: Динамика количества клиентов за | C6: =B3 -> 2016-03-31
B10: Количество зарегистрированных клиентов в Системе торгов (по состоянию на последний день месяца): | H10: Таблица 1
B11: Группы клиентов | E11: =EDATE(B3,-1) -> 2016-02-29 | F11: =B3 -> 2016-03-31 | G11: Изменение (ед.) | H11: Изменение (%)
B12: Физические лица | E12: =February!F12 -> 1299435 | F12: 1311606 | G12: =F12-E12 -> 12171 | H12: =F12/E12-1 -> 0.009366378464
B13: Юридические лица | E13: =February!F13 -> 30184 | F13: 30416 | G13: =F13-E13 -> 232 | H13: 0.00768619136
B14: Иностранные лица | E14: =February!F14 -> 13261 | F14: 13565 | G14: 304 | H14: 0.02292436468
B15: Иностранные физические лица | E15: =February!F15 -> 5006 | F15: 5131 | G15: 125 | H15: 0.02497003596
B16: Иностранные юридические лица | E16: =February!F16 -> 8255 | F16: 8434 | G16: 179 | H16: 0.02168382798
B17: Клиенты, передавшие свои средства в ДУ | E17: =February!F17 -> 14108 | F17: 13312 | G17: -796 | H17: -0.05642188829
B18: Всего | E18: =February!F18 -> 1356988 | F18: 1368899 | G18: 11911 | H18: 0.008777527878
B21: Количество уникальных клиентов в Системе торгов (по состоянию на последний день месяца): | H21: Таблица 2
B22: Группы клиентов | E22: =EDATE(B3,-1) -> 2016-02-29 | F22: =F11 -> 2016-03-31 | G22: Изменение (ед.) | H22: Изменение (%)
B23: Физические лица | E23: =February!F23 -> 1006765 | F23: 1008379 | G23: =F23-E23 -> 1614 | H23: =F23/E23-1 -> 0.001603154659
B24: Юридические лица | E24: =February!F24 -> 18908 | F24: 19035 | G24: =F24-E24 -> 127 | H24: =F24/E24-1 -> 0.006716733658
B25: Иностранные лица | E25: =February!F25 -> 8657 | F25: 8480 | G25: -177 | H25: -0.02044588195
B26: Иностранные физические лица | E26: =February!F26 -> 4697 | F26: 4794 | G26: 97 | H26: 0.02065147967
B27: Иностранные юридические лица | E27: =February!F27 -> 3960 | F27: 3686 | G27: -274 | H27: -0.06919191919
B28: Клиенты, передавшие свои средства в ДУ | E28: =February!F28 -> 2930 | F28: 2548 | G28: -382 | H28: -0.1303754266
B29: Всего | E29: =February!F29 -> 1037260 | F29: 1038442 | G29: 1182 | H29: 0.001139540713
B32: Количество активных клиентов в Системе торгов (совершивших в течение месяца хотя бы одну сделку): | H32: Таблица 3
B33: Группы клиентов | E33: =EDATE(B3,-1) -> 2016-02-29 | F33: =F11 -> 2016-03-31 | G33: Изменение (ед.) | H33: Изменение (%)
B34: Физические лица | E34: =February!F34 -> 73550 | F34: 79397 | G34: =F34-E34 -> 5847 | H34: =F34/E34-1 -> 0.07949694086
B35: Юридические лица | E35: =February!F35 -> 1044 | F35: 1099 | G35: 55 | H35: 0.05268199234
B36: Иностранные лица | E36: =February!F36 -> 642 | F36: 670 | G36: 28 | H36: 0.04361370717
B37: Иностранные физические лица | E37: =February!F37 -> 318 | F37: 336 | G37: 18 | H37: 0.05660377358
B38: Иностранные юридические лица | E38: =February!F38 -> 324 | F38: 334 | G38: 10 | H38: 0.03086419753
B39: Клиенты, передавшие свои средства в ДУ | E39: =February!F39 -> 554 | F39: 506 | G39: -48 | H39: -0.08664259928
B40: Всего | E40: =February!F40 -> 75790 | F40: 81672 | G40: 5882 | H40: 0.07760918327
B44: Изменение количества уникальных клиентов - ретроспективные данные
B48: Количество уникальных клиентов в Системе торгов (по состоянию на последний день месяца) (ежегодная статистика): | H48: Таблица 1
B49: Группы клиентов | E49: 2011-12-31 | F49: 2012-12-31 | G49: 2013-12-31 | H49: 2014-12-31 | I49: 2015-12-31
B50: Физические лица | E50: 772175 | F50: 805549 | G50: 881844 | H50: 944559 | I50: 1006751
B51: Юридические лица | E51: 16850 | F51: 17821 | G51: 19539 | H51: 20178 | I51: 20753
B52: Иностранные лица | E52: 5058 | F52: 5876 | G52: 6957 | H52: 7486 | I52: 8729
B53: Клиенты, передавшие свои средства в ДУ | E53: 5242 | F53: 5261 | G53: 5182 | H53: 5142 | I53: 3836
B54: Всего | E54: 799325 | F54: 834507 | G54: 913522 | H54: 977365 | I54: 1040069
B82: Количество уникальных клиентов в Системе торгов (по состоянию на последний день месяца) (за последние 6 месяцев): | H82: Таблица 2
B83: Группы клиентов | C83: =EDATE(D83,-1) -> 2015-10-29 | D83: =EDATE(E83,-1) -> 2015-11-29 | E83: =EDATE(F83,-1) -> 2015-12-29 | F83: =EDATE(G83,-1) -> 2016-01-29 | G83: =EDATE(H83,-1) -> 2016-02-29 | H83: =EDATE(E11,1) -> 2016-03-29
B84: Физические лица | C84: 996118 | D84: 1001556 | E84: 1006751 | F84: 1012875 | G84: 1006765 | H84: 1008379
B85: Юридические лица | C85: 20973 | D85: 21007 | E85: 20753 | F85: 20804 | G85: 18908 | H85: 19035
B86: Иностранные лица | C86: 8894 | D86: 8699 | E86: 8729 | F86: 8764 | G86: 8657 | H86: 8480
B87: Клиенты, передавшие свои средства в ДУ | C87: 4266 | D87: 4148 | E87: 3836 | F87: 3848 | G87: 2930 | H87: 2548
B88: Всего | C88: 1030251 | D88: 1035410 | E88: 1040069 | F88: 1046291 | G88: 1037260 | H88: 1038442
B124: Дополнительные показатели за | C124: =B3 -> 2016-03-31
H127: Таблица 1
B128: Участники торгов | G128: Абсолютные показатели
B129: Количество Участников торгов, имеющих активных клиентов | G129: 381
B133: Списки ведущих операторов фондового рынка - клиенты Участников торгов за | F133: =C6 -> 2016-03-31
B136: Ведущие операторы рынка – число зарегистрированных клиентов | H136: Таблица 1
B137: (по общему количеству уникальных клиентов всех типов, зарегистрированных в системе торгов биржи, в том числе в течение месяца)
B138: Наименование Участника торгов | G138: Количество клиентов
B139: ВТБ 24 (ПАО) | C139: ВТБ 24 (ПАО) | D139: ВТБ 24 (ПАО) | E139: ВТБ 24 (ПАО) | F139: ВТБ 24 (ПАО) | G139: 232070 | H139: 232070
B140: Сбербанк | C140: Сбербанк | D140: Сбербанк | E140: Сбербанк | F140: Сбербанк | G140: 182238 | H140: 182238
B141: АО "ФИНАМ" | C141: АО "ФИНАМ" | D141: АО "ФИНАМ" | E141: АО "ФИНАМ" | F141: АО "ФИНАМ" | G141: 148635 | H141: 148635
B142: ФГ БКС | C142: ФГ БКС | D142: ФГ БКС | E142: ФГ БКС | F142: ФГ БКС | G142: 147052 | H142: 147052
B143: ФГ "ОТКРЫТИЕ" | C143: ФГ "ОТКРЫТИЕ" | D143: ФГ "ОТКРЫТИЕ" | E143: ФГ "ОТКРЫТИЕ" | F143: ФГ "ОТКРЫТИЕ" | G143: 78989 | H143: 78989
B144: АО "АЛЬФА-БАНК" | C144: АО "АЛЬФА-БАНК" | D144: АО "АЛЬФА-БАНК" | E144: АО "АЛЬФА-БАНК" | F144: АО "АЛЬФА-БАНК" | G144: 61711 | H144: 61711
B145: ООО "АТОН" | C145: ООО "АТОН" | D145: ООО "АТОН" | E145: ООО "АТОН" | F145: ООО "АТОН" | G145: 48374 | H145: 48374
B146: АЛОР БРОКЕР | C146: АЛОР БРОКЕР | D146: АЛОР БРОКЕР | E146: АЛОР БРОКЕР | F146: АЛОР БРОКЕР | G146: 32385 | H146: 32385
B147: КИТ Финанс (ООО) | C147: КИТ Финанс (ООО) | D147: КИТ Финанс (ООО) | E147: КИТ Финанс (ООО) | F147: КИТ Финанс (ООО) | G147: 21167 | H147: 21167
B148: ООО "Инвестиционная палата" | C148: ООО "Инвестиционная палата" | D148: ООО "Инвестиционная палата" | E148: ООО "Инвестиционная палата" | F148: ООО "Инвестиционная палата" | G148: 19859 | H148: 19859
B151: Ведущие операторы рынка – число активных клиентов | H151: Таблица 2
B152: (по количеству уникальных клиентов, совершивших хотя бы одну сделку за месяц)
B153: Наименование Участника торгов | G153: Количество клиентов
B154: Сбербанк | C154: Сбербанк | D154: Сбербанк | E154: Сбербанк | F154: Сбербанк | G154: 15279 | H154: 15279
B155: ФГ БКС | C155: ФГ БКС | D155: ФГ БКС | E155: ФГ БКС | F155: ФГ БКС | G155: 12165 | H155: 12165
B156: АО "ФИНАМ" | C156: АО "ФИНАМ" | D156: АО "ФИНАМ" | E156: АО "ФИНАМ" | F156: АО "ФИНАМ" | G156: 11885 | H156: 11885
B157: ВТБ 24 (ПАО) | C157: ВТБ 24 (ПАО) | D157: ВТБ 24 (ПАО) | E157: ВТБ 24 (ПАО) | F157: ВТБ 24 (ПАО) | G157: 11417 | H157: 11417
B158: ФГ "ОТКРЫТИЕ" | C158: ФГ "ОТКРЫТИЕ" | D158: ФГ "ОТКРЫТИЕ" | E158: ФГ "ОТКРЫТИЕ" | F158: ФГ "ОТКРЫТИЕ" | G158: 8584 | H158: 8584
B159: АО "АЛЬФА-БАНК" | C159: АО "АЛЬФА-БАНК" | D159: АО "АЛЬФА-БАНК" | E159: АО "АЛЬФА-БАНК" | F159: АО "АЛЬФА-БАНК" | G159: 4491 | H159: 4491
B160: ООО "АТОН" | C160: ООО "АТОН" | D160: ООО "АТОН" | E160: ООО "АТОН" | F160: ООО "АТОН" | G160: 3115 | H160: 3115
B161: Банк ГПБ (АО) | C161: Банк ГПБ (АО) | D161: Банк ГПБ (АО) | E161: Банк ГПБ (АО) | F161: Банк ГПБ (АО) | G161: 2509 | H161: 2509
B162: ПАО "Промсвязьбанк" | C162: ПАО "Промсвязьбанк" | D162: ПАО "Промсвязьбанк" | E162: ПАО "Промсвязьбанк" | F162: ПАО "Промсвязьбанк" | G162: 1578 | H162: 1578
B163: КИТ Финанс (ООО) | C163: КИТ Финанс (ООО) | D163: КИТ Финанс (ООО) | E163: КИТ Финанс (ООО) | F163: КИТ Финанс (ООО) | G163: 1440 | H163: 1440
B166: Ведущие операторы рынка – объем клиентских операций | H166: Таблица 3
B167: (по стоимостному объему сделок, заключенных в интересах клиентов за месяц)
B168: Наименование Участника торгов | G168: Торговый оборот, руб.
B169: ФГ БКС | C169: ФГ БКС | D169: ФГ БКС | E169: ФГ БКС | F169: ФГ БКС | G169: 1.33524257e+12 | H169: 1.33524257e+12
B170: ООО "Ренессанс Брокер" | C170: ООО "Ренессанс Брокер" | D170: ООО "Ренессанс Брокер" | E170: ООО "Ренессанс Брокер" | F170: ООО "Ренессанс Брокер" | G170: 1.122119957e+12 | H170: 1.122119957e+12
B171: ФГ "ОТКРЫТИЕ" | C171: ФГ "ОТКРЫТИЕ" | D171: ФГ "ОТКРЫТИЕ" | E171: ФГ "ОТКРЫТИЕ" | F171: ФГ "ОТКРЫТИЕ" | G171: 9.114882461e+11 | H171: 9.114882461e+11
B172: Сбербанк | C172: Сбербанк | D172: Сбербанк | E172: Сбербанк | F172: Сбербанк | G172: 5.113057226e+11 | H172: 5.113057226e+11
B173: ООО "ИК ВЕЛЕС Капитал" | C173: ООО "ИК ВЕЛЕС Капитал" | D173: ООО "ИК ВЕЛЕС Капитал" | E173: ООО "ИК ВЕЛЕС Капитал" | F173: ООО "ИК ВЕЛЕС Капитал" | G173: 3.83770143e+11 | H173: 3.83770143e+11
B174: ООО "БК РЕГИОН" | C174: ООО "БК РЕГИОН" | D174: ООО "БК РЕГИОН" | E174: ООО "БК РЕГИОН" | F174: ООО "БК РЕГИОН" | G174: 3.79891794e+11 | H174: 3.79891794e+11
B175: ООО "ИФК "МЕТРОПОЛЬ" | C175: ООО "ИФК "МЕТРОПОЛЬ" | D175: ООО "ИФК "МЕТРОПОЛЬ" | E175: ООО "ИФК "МЕТРОПОЛЬ" | F175: ООО "ИФК "МЕТРОПОЛЬ" | G175: 3.66762818e+11 | H175: 3.66762818e+11
B176: ПАО "Промсвязьбанк" | C176: ПАО "Промсвязьбанк" | D176: ПАО "Промсвязьбанк" | E176: ПАО "Промсвязьбанк" | F176: ПАО "Промсвязьбанк" | G176: 3.353526248e+11 | H176: 3.353526248e+11
B177: ООО "АТОН" | C177: ООО "АТОН" | D177: ООО "АТОН" | E177: ООО "АТОН" | F177: ООО "АТОН" | G177: 3.138989221e+11 | H177: 3.138989221e+11
B178: АО "ФИНАМ" | C178: АО "ФИНАМ" | D178: АО "ФИНАМ" | E178: АО "ФИНАМ" | F178: АО "ФИНАМ" | G178: 3.094943729e+11 | H178: 3.094943729e+11

Sheet April
B2: Клиенты Участников торгов Фондовой биржи ММВБ
B3: 2016-04-30
B6: Динамика количества клиентов за | C6: =B3 -> 2016-04-30
B10: Количество зарегистрированных клиентов в Системе торгов (по состоянию на последний день месяца): | H10: Таблица 1
B11: Группы клиентов | E11: =EDATE(B3,-1) -> 2016-03-30 | F11: =B3 -> 2016-04-30 | G11: Изменение (ед.) | H11: Изменение (%)
B12: Физические лица | E12: =March!F12 -> 1311606 | F12: 1345077 | G12: =F12-E12 -> 33471 | H12: =F12/E12-1 -> 0.02551909644
B13: Юридические лица | E13: =March!F13 -> 30416 | F13: 32138 | G13: =F13-E13 -> 1722 | H13: 0.05661493951
B14: Иностранные лица | E14: =March!F14 -> 13565 | F14: 13635 | G14: 70 | H14: 0.005160339108
B15: Иностранные физические лица | E15: =March!F15 -> 5131 | F15: 5458 | G15: 327 | H15: 0.063730267
B16: Иностранные юридические лица | E16: =March!F16 -> 8434 | F16: 8177 | G16: -257 | H16: -0.03047189945
B17: Клиенты, передавшие свои средства в ДУ | E17: =March!F17 -> 13312 | F17: 12595 | G17: -717 | H17: -0.05386117788
B18: Всего | E18: =March!F18 -> 1368899 | F18: 1403445 | G18: 34546 | H18: 0.02523633957
B21: Количество уникальных клиентов в Системе торгов (по состоянию на последний день месяца): | H21: Таблица 2
B22: Группы клиентов | E22: =EDATE(B3,-1) -> 2016-03-30 | F22: =F11 -> 2016-04-30 | G22: Изменение (ед.) | H22: Изменение (%)
B23: Физические лица | E23: =March!F23 -> 1008379 | F23: 1014752 | G23: =F23-E23 -> 6373 | H23: =F23/E23-1 -> 0.006320044348
B24: Юридические лица | E24: =March!F24 -> 19035 | F24: 19023 | G24: =F24-E24 -> -12 | H24: =F24/E24-1 -> -0.0006304176517
B25: Иностранные лица | E25: =March!F25 -> 8480 | F25: 8800 | G25: 320 | H25: 0.03773584906
B26: Иностранные физические лица | E26: =March!F26 -> 4794 | F26: 5052 | G26: 258 | H26: 0.05381727159
B27: Иностранные юридические лица | E27: =March!F27 -> 3686 | F27: 3748 | G27: 62 | H27: 0.01682040152
B28: Клиенты, передавшие свои средства в ДУ | E28: =March!F28 -> 2548 | F28: 1422 | G28: -1126 | H28: -0.4419152276
B29: Всего | E29: =March!F29 -> 1038442 | F29: 1043997 | G29: 5555 | H29: 0.005349359906
B32: Количество активных клиентов в Системе торгов (совершивших в течение месяца хотя бы одну сделку): | H32: Таблица 3
B33: Группы клиентов | E33: =EDATE(B3,-1) -> 2016-03-30 | F33: =F11 -> 2016-04-30 | G33: Изменение (ед.) | H33: Изменение (%)
B34: Физические лица | E34: =March!F34 -> 79397 | F34: 80653 | G34: =F34-E34 -> 1256 | H34: =F34/E34-1 -> 0.0158192375
B35: Юридические лица | E35: =March!F35 -> 1099 | F35: 1150 | G35: 51 | H35: 0.04640582348
B36: Иностранные лица | E36: =March!F36 -> 670 | F36: 665 | G36: -5 | H36: -0.007462686567
B37: Иностранные физические лица | E37: =March!F37 -> 336 | F37: 332 | G37: -4 | H37: -0.0119047619
B38: Иностранные юридические лица | E38: =March!F38 -> 334 | F38: 333 | G38: -1 | H38: -0.002994011976
B39: Клиенты, передавшие свои средства в ДУ | E39: =March!F39 -> 506 | F39: 524 | G39: 18 | H39: 0.03557312253
B40: Всего | E40: =March!F40 -> 81672 | F40: 82992 | G40: 1320 | H40: 0.01616220981
B44: Изменение количества уникальных клиентов - ретроспективные данные
B48: Количество уникальных клиентов в Системе торгов (по состоянию на последний день месяца) (ежегодная статистика): | H48: Таблица 1
B49: Группы клиентов | E49: 2011-12-31 | F49: 2012-12-31 | G49: 2013-12-31 | H49: 2014-12-31 | I49: 2015-12-31
B50: Физические лица | E50: 772175 | F50: 805549 | G50: 881844 | H50: 944559 | I50: 1006751
B51: Юридические лица | E51: 16850 | F51: 17821 | G51: 19539 | H51: 20178 | I51: 20753
B52: Иностранные лица | E52: 5058 | F52: 5876 | G52: 6957 | H52: 7486 | I52: 8729
B53: Клиенты, передавшие свои средства в ДУ | E53: 5242 | F53: 5261 | G53: 5182 | H53: 5142 | I53: 3836
B54: Всего | E54: 799325 | F54: 834507 | G54: 913522 | H54: 977365 | I54: 1040069
B82: Количество уникальных клиентов в Системе торгов (по состоянию на последний день месяца) (за последние 6 месяцев): | H82: Таблица 2
B83: Группы клиентов | C83: =EDATE(D83,-1) -> 2015-11-29 | D83: =EDATE(E83,-1) -> 2015-12-29 | E83: =EDATE(F83,-1) -> 2016-01-29 | F83: =EDATE(G83,-1) -> 2016-02-29 | G83: =EDATE(H83,-1) -> 2016-03-30 | H83: =EDATE(E11,1) -> 2016-04-30
B84: Физические лица | C84: 1001556 | D84: 1006751 | E84: 1012875 | F84: 1006765 | G84: 1008379 | H84: 1014752
B85: Юридические лица | C85: 21007 | D85: 20753 | E85: 20804 | F85: 18908 | G85: 19035 | H85: 19023
B86: Иностранные лица | C86: 8699 | D86: 8729 | E86: 8764 | F86: 8657 | G86: 8480 | H86: 8800
B87: Клиенты, передавшие свои средства в ДУ | C87: 4148 | D87: 3836 | E87: 3848 | F87: 2930 | G87: 2548 | H87: 1422
B88: Всего | C88: 1035410 | D88: 1040069 | E88: 1046291 | F88: 1037260 | G88: 1038442 | H88: 1043997
B124: Дополнительные показатели за | C124: =B3 -> 2016-04-30
H127: Таблица 1
B128: Участники торгов | G128: Абсолютные показатели
B129: Количество Участников торгов, имеющих активных клиентов | G129: 376
B133: Списки ведущих операторов фондового рынка - клиенты Участников торгов за | F133: =C6 -> 2016-04-30
B136: Ведущие операторы рынка – число зарегистрированных клиентов | H136: Таблица 1
B137: (по общему количеству уникальных клиентов всех типов, зарегистрированных в системе торгов биржи, в том числе в течение месяца)
B138: Наименование Участника торгов | G138: Количество клиентов
B139: ВТБ 24 (ПАО) | C139: ВТБ 24 (ПАО) | D139: ВТБ 24 (ПАО) | E139: ВТБ 24 (ПАО) | F139: ВТБ 24 (ПАО) | G139: 233329 | H139: 233329
B140: Сбербанк | C140: Сбербанк | D140: Сбербанк | E140: Сбербанк | F140: Сбербанк | G140: 182259 | H140: 182259
B141: АО "ФИНАМ" | C141: АО "ФИНАМ" | D141: АО "ФИНАМ" | E141: АО "ФИНАМ" | F141: АО "ФИНАМ" | G141: 148959 | H141: 148959
B142: ФГ БКС | C142: ФГ БКС | D142: ФГ БКС | E142: ФГ БКС | F142: ФГ БКС | G142: 148913 | H142: 148913
B143: ФГ "ОТКРЫТИЕ" | C143: ФГ "ОТКРЫТИЕ" | D143: ФГ "ОТКРЫТИЕ" | E143: ФГ "ОТКРЫТИЕ" | F143: ФГ "ОТКРЫТИЕ" | G143: 81157 | H143: 81157
B144: АО "АЛЬФА-БАНК" | C144: АО "АЛЬФА-БАНК" | D144: АО "АЛЬФА-БАНК" | E144: АО "АЛЬФА-БАНК" | F144: АО "АЛЬФА-БАНК" | G144: 61725 | H144: 61725
B145: ООО "АТОН" | C145: ООО "АТОН" | D145: ООО "АТОН" | E145: ООО "АТОН" | F145: ООО "АТОН" | G145: 48571 | H145: 48571
B146: АЛОР БРОКЕР | C146: АЛОР БРОКЕР | D146: АЛОР БРОКЕР | E146: АЛОР БРОКЕР | F146: АЛОР БРОКЕР | G146: 32500 | H146: 32500
B147: КИТ Финанс (ООО) | C147: КИТ Финанс (ООО) | D147: КИТ Финанс (ООО) | E147: КИТ Финанс (ООО) | F147: КИТ Финанс (ООО) | G147: 21198 | H147: 21198
B148: ООО "Инвестиционная палата" | C148: ООО "Инвестиционная палата" | D148: ООО "Инвестиционная палата" | E148: ООО "Инвестиционная палата" | F148: ООО "Инвестиционная палата" | G148: 19859 | H148: 19859
B151: Ведущие операторы рынка – число активных клиентов | H151: Таблица 2
B152: (по количеству уникальных клиентов, совершивших хотя бы одну сделку за месяц)
B153: Наименование Участника торгов | G153: Количество клиентов
B154: Сбербанк | C154: Сбербанк | D154: Сбербанк | E154: Сбербанк | F154: Сбербанк | G154: 15321 | H154: 15321
B155: ФГ БКС | C155: ФГ БКС | D155: ФГ БКС | E155: ФГ БКС | F155: ФГ БКС | G155: 12461 | H155: 12461
B156: АО "ФИНАМ" | C156: АО "ФИНАМ" | D156: АО "ФИНАМ" | E156: АО "ФИНАМ" | F156: АО "ФИНАМ" | G156: 12099 | H156: 12099
B157: ВТБ 24 (ПАО) | C157: ВТБ 24 (ПАО) | D157: ВТБ 24 (ПАО) | E157: ВТБ 24 (ПАО) | F157: ВТБ 24 (ПАО) | G157: 11356 | H157: 11356
B158: ФГ "ОТКРЫТИЕ" | C158: ФГ "ОТКРЫТИЕ" | D158: ФГ "ОТКРЫТИЕ" | E158: ФГ "ОТКРЫТИЕ" | F158: ФГ "ОТКРЫТИЕ" | G158: 8789 | H158: 8789
B159: АО "АЛЬФА-БАНК" | C159: АО "АЛЬФА-БАНК" | D159: АО "АЛЬФА-БАНК" | E159: АО "АЛЬФА-БАНК" | F159: АО "АЛЬФА-БАНК" | G159: 4445 | H159: 4445
B160: ООО "АТОН" | C160: ООО "АТОН" | D160: ООО "АТОН" | E160: ООО "АТОН" | F160: ООО "АТОН" | G160: 3216 | H160: 3216
B161: Банк ГПБ (АО) | C161: Банк ГПБ (АО) | D161: Банк ГПБ (АО) | E161: Банк ГПБ (АО) | F161: Банк ГПБ (АО) | G161: 2537 | H161: 2537
B162: ПАО "Промсвязьбанк" | C162: ПАО "Промсвязьбанк" | D162: ПАО "Промсвязьбанк" | E162: ПАО "Промсвязьбанк" | F162: ПАО "Промсвязьбанк" | G162: 1665 | H162: 1665
B163: КИТ Финанс (ООО) | C163: КИТ Финанс (ООО) | D163: КИТ Финанс (ООО) | E163: КИТ Финанс (ООО) | F163: КИТ Финанс (ООО) | G163: 1509 | H163: 1509
B166: Ведущие операторы рынка – объем клиентских операций | H166: Таблица 3
B167: (по стоимостному объему сделок, заключенных в интересах клиентов за месяц)
B168: Наименование Участника торгов | G168: Торговый оборот, руб.
B169: ФГ БКС | C169: ФГ БКС | D169: ФГ БКС | E169: ФГ БКС | F169: ФГ БКС | G169: 1.373528593e+12 | H169: 1.373528593e+12
B170: ООО "Ренессанс Брокер" | C170: ООО "Ренессанс Брокер" | D170: ООО "Ренессанс Брокер" | E170: ООО "Ренессанс Брокер" | F170: ООО "Ренессанс Брокер" | G170: 1.111967768e+12 | H170: 1.111967768e+12
B171: ФГ "ОТКРЫТИЕ" | C171: ФГ "ОТКРЫТИЕ" | D171: ФГ "ОТКРЫТИЕ" | E171: ФГ "ОТКРЫТИЕ" | F171: ФГ "ОТКРЫТИЕ" | G171: 1.006373288e+12 | H171: 1.006373288e+12
B172: Сбербанк | C172: Сбербанк | D172: Сбербанк | E172: Сбербанк | F172: Сбербанк | G172: 5.860275621e+11 | H172: 5.860275621e+11
B173: ООО "БК РЕГИОН" | C173: ООО "БК РЕГИОН" | D173: ООО "БК РЕГИОН" | E173: ООО "БК РЕГИОН" | F173: ООО "БК РЕГИОН" | G173: 5.603879803e+11 | H173: 5.603879803e+11
B174: ООО "ИФК "МЕТРОПОЛЬ" | C174: ООО "ИФК "МЕТРОПОЛЬ" | D174: ООО "ИФК "МЕТРОПОЛЬ" | E174: ООО "ИФК "МЕТРОПОЛЬ" | F174: ООО "ИФК "МЕТРОПОЛЬ" | G174: 3.611368205e+11 | H174: 3.611368205e+11
B175: АО "ФИНАМ" | C175: АО "ФИНАМ" | D175: АО "ФИНАМ" | E175: АО "ФИНАМ" | F175: АО "ФИНАМ" | G175: 3.494355716e+11 | H175: 3.494355716e+11
B176: ООО "ИК ВЕЛЕС Капитал" | C176: ООО "ИК ВЕЛЕС Капитал" | D176: ООО "ИК ВЕЛЕС Капитал" | E176: ООО "ИК ВЕЛЕС Капитал" | F176: ООО "ИК ВЕЛЕС Капитал" | G176: 3.414346963e+11 | H176: 3.414346963e+11
B177: ПАО "Промсвязьбанк" | C177: ПАО "Промсвязьбанк" | D177: ПАО "Промсвязьбанк" | E177: ПАО "Промсвязьбанк" | F177: ПАО "Промсвязьбанк" | G177: 3.091134344e+11 | H177: 3.091134344e+11
B178: ООО "АТОН" | C178: ООО "АТОН" | D178: ООО "АТОН" | E178: ООО "АТОН" | F178: ООО "АТОН" | G178: 2.859877295e+11 | H178: 2.859877295e+11

Sheet May
B2: Клиенты Участников торгов Фондовой биржи ММВБ
B3: 2016-05-30
B6: Динамика количества клиентов за | C6: =B3 -> 2016-05-30
B10: Количество зарегистрированных клиентов в Системе торгов (по состоянию на последний день месяца): | H10: Таблица 1
B11: Группы клиентов | E11: =EDATE(B3,-1) -> 2016-04-30 | F11: =B3 -> 2016-05-30 | G11: Изменение (ед.) | H11: Изменение (%)
B12: Физические лица | E12: =April!F12 -> 1345077 | F12: 1350066 | G12: =F12-E12 -> 4989 | H12: =F12/E12-1 -> 0.003709081339
B13: Юридические лица | E13: =April!F13 -> 32138 | F13: 30800 | G13: =F13-E13 -> -1338 | H13: -0.04163295787
B14: Иностранные лица | E14: =April!F14 -> 13635 | F14: 13714 | G14: 79 | H14: 0.005793912725
B15: Иностранные физические лица | E15: =April!F15 -> 5458 | F15: 5667 | G15: 209 | H15: 0.0382924148
B16: Иностранные юридические лица | E16: =April!F16 -> 8177 | F16: 8047 | G16: -130 | H16: -0.01589825119
B17: Клиенты, передавшие свои средства в ДУ | E17: =April!F17 -> 12595 | F17: 12965 | G17: 370 | H17: 0.0293767368
B18: Всего | E18: =April!F18 -> 1403445 | F18: 1407545 | G18: 4100 | H18: 0.00292138274
B21: Количество уникальных клиентов в Системе торгов (по состоянию на последний день месяца): | H21: Таблица 2
B22: Группы клиентов | E22: =EDATE(B3,-1) -> 2016-04-30 | F22: =F11 -> 2016-05-30 | G22: Изменение (ед.) | H22: Изменение (%)
B23: Физические лица | E23: =April!F23 -> 1014752 | F23: 1018892 | G23: =F23-E23 -> 4140 | H23: =F23/E23-1 -> 0.004079814575
B24: Юридические лица | E24: =April!F24 -> 19023 | F24: 19023 | G24: =F24-E24 -> 0 | H24: =F24/E24-1 -> 0
B25: Иностранные лица | E25: =April!F25 -> 8800 | F25: 8928 | G25: 128 | H25: 0.01454545455
B26: Иностранные физические лица | E26: =April!F26 -> 5052 | F26: 5197 | G26: 145 | H26: 0.02870150435
B27: Иностранные юридические лица | E27: =April!F27 -> 3748 | F27: 3731 | G27: -17 | H27: -0.004535752401
B28: Клиенты, передавшие свои средства в ДУ | E28: =April!F28 -> 1422 | F28: 1400 | G28: -22 | H28: -0.01547116737
B29: Всего | E29: =April!F29 -> 1043997 | F29: 1048243 | G29: 4246 | H29: 0.004067061495
B32: Количество активных клиентов в Системе торгов (совершивших в течение месяца хотя бы одну сделку): | H32: Таблица 3
B33: Группы клиентов | E33: =EDATE(B3,-1) -> 2016-04-30 | F33: =F11 -> 2016-05-30 | G33: Изменение (ед.) | H33: Изменение (%)
B34: Физические лица | E34: =April!F34 -> 80653 | F34: 68987 | G34: =F34-E34 -> -11666 | H34: =F34/E34-1 -> -0.1446443406
B35: Юридические лица | E35: =April!F35 -> 1150 | F35: 999 | G35: -151 | H35: -0.1313043478
B36: Иностранные лица | E36: =April!F36 -> 665 | F36: 599 | G36: -66 | H36: -0.0992481203
B37: Иностранные физические лица | E37: =April!F37 -> 332 | F37: 287 | G37: -45 | H37: -0.1355421687
B38: Иностранные юридические лица | E38: =April!F38 -> 333 | F38: 312 | G38: -21 | H38: -0.06306306306
B39: Клиенты, передавшие свои средства в ДУ | E39: =April!F39 -> 524 | F39: 432 | G39: -92 | H39: -0.1755725191
B40: Всего | E40: =April!F40 -> 82992 | F40: 71017 | G40: -11975 | H40: -0.144291016
B44: Изменение количества уникальных клиентов - ретроспективные данные
B48: Количество уникальных клиентов в Системе торгов (по состоянию на последний день месяца) (ежегодная статистика): | H48: Таблица 1
B49: Группы клиентов | E49: 2011-12-31 | F49: 2012-12-31 | G49: 2013-12-31 | H49: 2014-12-31 | I49: 2015-12-31
B50: Физические лица | E50: 772175 | F50: 805549 | G50: 881844 | H50: 944559 | I50: 1006751
B51: Юридические лица | E51: 16850 | F51: 17821 | G51: 19539 | H51: 20178 | I51: 20753
B52: Иностранные лица | E52: 5058 | F52: 5876 | G52: 6957 | H52: 7486 | I52: 8729
B53: Клиенты, передавшие свои средства в ДУ | E53: 5242 | F53: 5261 | G53: 5182 | H53: 5142 | I53: 3836
B54: Всего | E54: 799325 | F54: 834507 | G54: 913522 | H54: 977365 | I54: 1040069
B82: Количество уникальных клиентов в Системе торгов (по состоянию на последний день месяца) (за последние 6 месяцев): | H82: Таблица 2
B83: Группы клиентов | C83: =EDATE(D83,-1) -> 2015-12-29 | D83: =EDATE(E83,-1) -> 2016-01-29 | E83: =EDATE(F83,-1) -> 2016-02-29 | F83: =EDATE(G83,-1) -> 2016-03-30 | G83: =EDATE(H83,-1) -> 2016-04-30 | H83: =EDATE(E11,1) -> 2016-05-30
B84: Физические лица | C84: 1006751 | D84: 1012875 | E84: 1006765 | F84: 1008379 | G84: 1014752 | H84: 1018892
B85: Юридические лица | C85: 20753 | D85: 20804 | E85: 18908 | F85: 19035 | G85: 19023 | H85: 19023
B86: Иностранные лица | C86: 8729 | D86: 8764 | E86: 8657 | F86: 8480 | G86: 8800 | H86: 8928
B87: Клиенты, передавшие свои средства в ДУ | C87: 3836 | D87: 3848 | E87: 2930 | F87: 2548 | G87: 1422 | H87: 1400
B88: Всего | C88: 1040069 | D88: 1046291 | E88: 1037260 | F88: 1038442 | G88: 1043997 | H88: 1048243
B124: Дополнительные показатели за | C124: =B3 -> 2016-05-30
H127: Таблица 1
B128: Участники торгов | G128: Абсолютные показатели
B129: Количество Участников торгов, имеющих активных клиентов | G129: 366
B133: Списки ведущих операторов фондового рынка - клиенты Участников торгов за | F133: =C6 -> 2016-05-30
B136: Ведущие операторы рынка – число зарегистрированных клиентов | H136: Таблица 1
B137: (по общему количеству уникальных клиентов всех типов, зарегистрированных в системе торгов биржи, в том числе в течение месяца)
B138: Наименование Участника торгов | G138: Количество клиентов
B139: ВТБ 24 (ПАО) | C139: ВТБ 24 (ПАО) | D139: ВТБ 24 (ПАО) | E139: ВТБ 24 (ПАО) | F139: ВТБ 24 (ПАО) | G139: 234591 | H139: 234591
B140: Сбербанк | C140: Сбербанк | D140: Сбербанк | E140: Сбербанк | F140: Сбербанк | G140: 183711 | H140: 183711
B141: ФГ БКС | C141: ФГ БКС | D141: ФГ БКС | E141: ФГ БКС | F141: ФГ БКС | G141: 150354 | H141: 150354
B142: АО "ФИНАМ" | C142: АО "ФИНАМ" | D142: АО "ФИНАМ" | E142: АО "ФИНАМ" | F142: АО "ФИНАМ" | G142: 150284 | H142: 150284
B143: ФГ "ОТКРЫТИЕ" | C143: ФГ "ОТКРЫТИЕ" | D143: ФГ "ОТКРЫТИЕ" | E143: ФГ "ОТКРЫТИЕ" | F143: ФГ "ОТКРЫТИЕ" | G143: 82878 | H143: 82878
B144: АО "АЛЬФА-БАНК" | C144: АО "АЛЬФА-БАНК" | D144: АО "АЛЬФА-БАНК" | E144: АО "АЛЬФА-БАНК" | F144: АО "АЛЬФА-БАНК" | G144: 61804 | H144: 61804
B145: ООО "АТОН" | C145: ООО "АТОН" | D145: ООО "АТОН" | E145: ООО "АТОН" | F145: ООО "АТОН" | G145: 48775 | H145: 48775
B146: АЛОР БРОКЕР | C146: АЛОР БРОКЕР | D146: АЛОР БРОКЕР | E146: АЛОР БРОКЕР | F146: АЛОР БРОКЕР | G146: 32628 | H146: 32628
B147: КИТ Финанс (ООО) | C147: КИТ Финанс (ООО) | D147: КИТ Финанс (ООО) | E147: КИТ Финанс (ООО) | F147: КИТ Финанс (ООО) | G147: 21275 | H147: 21275
B148: ООО "Инвестиционная палата" | C148: ООО "Инвестиционная палата" | D148: ООО "Инвестиционная палата" | E148: ООО "Инвестиционная палата" | F148: ООО "Инвестиционная палата" | G148: 19859 | H148: 19859
B151: Ведущие операторы рынка – число активных клиентов | H151: Таблица 2
B152: (по количеству уникальных клиентов, совершивших хотя бы одну сделку за месяц)
B153: Наименование Участника торгов | G153: Количество клиентов
B154: Сбербанк | C154: Сбербанк | D154: Сбербанк | E154: Сбербанк | F154: Сбербанк | G154: 12403 | H154: 12403
B155: ФГ БКС | C155: ФГ БКС | D155: ФГ БКС | E155: ФГ БКС | F155: ФГ БКС | G155: 10606 | H155: 10606
B156: АО "ФИНАМ" | C156: АО "ФИНАМ" | D156: АО "ФИНАМ" | E156: АО "ФИНАМ" | F156: АО "ФИНАМ" | G156: 10545 | H156: 10545
B157: ВТБ 24 (ПАО) | C157: ВТБ 24 (ПАО) | D157: ВТБ 24 (ПАО) | E157: ВТБ 24 (ПАО) | F157: ВТБ 24 (ПАО) | G157: 10045 | H157: 10045
B158: ФГ "ОТКРЫТИЕ" | C158: ФГ "ОТКРЫТИЕ" | D158: ФГ "ОТКРЫТИЕ" | E158: ФГ "ОТКРЫТИЕ" | F158: ФГ "ОТКРЫТИЕ" | G158: 8060 | H158: 8060
B159: АО "АЛЬФА-БАНК" | C159: АО "АЛЬФА-БАНК" | D159: АО "АЛЬФА-БАНК" | E159: АО "АЛЬФА-БАНК" | F159: АО "АЛЬФА-БАНК" | G159: 3857 | H159: 3857
B160: ООО "АТОН" | C160: ООО "АТОН" | D160: ООО "АТОН" | E160: ООО "АТОН" | F160: ООО "АТОН" | G160: 2698 | H160: 2698
B161: Банк ГПБ (АО) | C161: Банк ГПБ (АО) | D161: Банк ГПБ (АО) | E161: Банк ГПБ (АО) | F161: Банк ГПБ (АО) | G161: 2236 | H161: 2236
B162: ПАО "Промсвязьбанк" | C162: ПАО "Промсвязьбанк" | D162: ПАО "Промсвязьбанк" | E162: ПАО "Промсвязьбанк" | F162: ПАО "Промсвязьбанк" | G162: 1486 | H162: 1486
B163: КИТ Финанс (ООО) | C163: КИТ Финанс (ООО) | D163: КИТ Финанс (ООО) | E163: КИТ Финанс (ООО) | F163: КИТ Финанс (ООО) | G163: 1236 | H163: 1236
B166: Ведущие операторы рынка – объем клиентских операций | H166: Таблица 3
B167: (по стоимостному объему сделок, заключенных в интересах клиентов за месяц)
B168: Наименование Участника торгов | G168: Торговый оборот, руб.
B169: ФГ БКС | C169: ФГ БКС | D169: ФГ БКС | E169: ФГ БКС | F169: ФГ БКС | G169: 1.279096538e+12 | H169: 1.279096538e+12
B170: ООО "Ренессанс Брокер" | C170: ООО "Ренессанс Брокер" | D170: ООО "Ренессанс Брокер" | E170: ООО "Ренессанс Брокер" | F170: ООО "Ренессанс Брокер" | G170: 9.03984488e+11 | H170: 9.03984488e+11
B171: ФГ "ОТКРЫТИЕ" | C171: ФГ "ОТКРЫТИЕ" | D171: ФГ "ОТКРЫТИЕ" | E171: ФГ "ОТКРЫТИЕ" | F171: ФГ "ОТКРЫТИЕ" | G171: 8.814023054e+11 | H171: 8.814023054e+11
B172: ООО "БК РЕГИОН" | C172: ООО "БК РЕГИОН" | D172: ООО "БК РЕГИОН" | E172: ООО "БК РЕГИОН" | F172: ООО "БК РЕГИОН" | G172: 4.229501572e+11 | H172: 4.229501572e+11
B173: Сбербанк | C173: Сбербанк | D173: Сбербанк | E173: Сбербанк | F173: Сбербанк | G173: 4.221033605e+11 | H173: 4.221033605e+11
B174: ООО "ИФК "МЕТРОПОЛЬ" | C174: ООО "ИФК "МЕТРОПОЛЬ" | D174: ООО "ИФК "МЕТРОПОЛЬ" | E174: ООО "ИФК "МЕТРОПОЛЬ" | F174: ООО "ИФК "МЕТРОПОЛЬ" | G174: 3.082043309e+11 | H174: 3.082043309e+11
B175: ООО "ИК ВЕЛЕС Капитал" | C175: ООО "ИК ВЕЛЕС Капитал" | D175: ООО "ИК ВЕЛЕС Капитал" | E175: ООО "ИК ВЕЛЕС Капитал" | F175: ООО "ИК ВЕЛЕС Капитал" | G175: 2.872673149e+11 | H175: 2.872673149e+11
B176: АО "ФИНАМ" | C176: АО "ФИНАМ" | D176: АО "ФИНАМ" | E176: АО "ФИНАМ" | F176: АО "ФИНАМ" | G176: 2.842478427e+11 | H176: 2.842478427e+11
B177: ПАО "Промсвязьбанк" | C177: ПАО "Промсвязьбанк" | D177: ПАО "Промсвязьбанк" | E177: ПАО "Промсвязьбанк" | F177: ПАО "Промсвязьбанк" | G177: 2.778510375e+11 | H177: 2.778510375e+11
B178: ООО "РОНИН" | C178: ООО "РОНИН" | D178: ООО "РОНИН" | E178: ООО "РОНИН" | F178: ООО "РОНИН" | G178: 1.993943088e+11 | H178: 1.993943088e+11

Sheet June
B2: Клиенты Участников торгов Фондовой биржи ММВБ
B3: 2016-06-30
B6: Динамика количества клиентов за | C6: =B3 -> 2016-06-30
B10: Количество зарегистрированных клиентов в Системе торгов (по состоянию на последний день месяца): | H10: Таблица 1
B11: Группы клиентов | E11: =EDATE(B3,-1) -> 2016-05-30 | F11: =B3 -> 2016-06-30 | G11: Изменение (ед.) | H11: Изменение (%)
B12: Физические лица | E12: 1542221 | F12: 1352100 | G12: =F12-E12 -> -190121 | H12: =F12/E12-1 -> -0.1232774032
B13: Юридические лица | E13: 32597 | F13: 30939 | G13: =F13-E13 -> -1658 | H13: -0.0508635764
B14: Иностранные лица | E14: 14470 | F14: 14056 | G14: -414 | H14: -0.02861091914
B15: Иностранные физические лица | E15: 6294 | F15: 5906 | G15: -388 | H15: -0.06164601207
B16: Иностранные юридические лица | E16: 8176 | F16: 8150 | G16: -26 | H16: -0.003180039139
B17: Клиенты, передавшие свои средства в ДУ | E17: 13729 | F17: 13590 | G17: -139 | H17: -0.01012455386
B18: Всего | E18: 1603017 | F18: 1410685 | G18: -192332 | H18: -0.1199812603
B21: Количество уникальных клиентов в Системе торгов (по состоянию на последний день месяца): | H21: Таблица 2
B22: Группы клиентов | E22: =EDATE(B3,-1) -> 2016-05-30 | F22: =F11 -> 2016-06-30 | G22: Изменение (ед.) | H22: Изменение (%)
B23: Физические лица | E23: =May!F23 -> 1018892 | F23: 1028991 | G23: =F23-E23 -> 10099 | H23: =F23/E23-1 -> 0.009911747271
B24: Юридические лица | E24: =May!F24 -> 19023 | F24: 19118 | G24: =F24-E24 -> 95 | H24: =F24/E24-1 -> 0.004993954686
B25: Иностранные лица | E25: =May!F25 -> 8928 | F25: 9251 | G25: 323 | H25: 0.03617831541
B26: Иностранные физические лица | E26: =May!F26 -> 5197 | F26: 5517 | G26: 320 | H26: 0.06157398499
B27: Иностранные юридические лица | E27: =May!F27 -> 3731 | F27: 3734 | G27: 3 | H27: 0.0008040739748
B28: Клиенты, передавшие свои средства в ДУ | E28: =May!F28 -> 1400 | F28: 1412 | G28: 12 | H28: 0.008571428571
B29: Всего | E29: =May!F29 -> 1048243 | F29: 1058772 | G29: 10529 | H29: 0.01004442672
B32: Количество активных клиентов в Системе торгов (совершивших в течение месяца хотя бы одну сделку): | H32: Таблица 3
B33: Группы клиентов | E33: =EDATE(B3,-1) -> 2016-05-30 | F33: =F11 -> 2016-06-30 | G33: Изменение (ед.) | H33: Изменение (%)
B34: Физические лица | E34: =May!F34 -> 68987 | F34: 72090 | G34: =F34-E34 -> 3103 | H34: =F34/E34-1 -> 0.04497948889
B35: Юридические лица | E35: =May!F35 -> 999 | F35: 1092 | G35: 93 | H35: 0.09309309309
B36: Иностранные лица | E36: =May!F36 -> 599 | F36: 673 | G36: 74 | H36: 0.1235392321
B37: Иностранные физические лица | E37: =May!F37 -> 287 | F37: 334 | G37: 47 | H37: 0.1637630662
B38: Иностранные юридические лица | E38: =May!F38 -> 312 | F38: 339 | G38: 27 | H38: 0.08653846154
B39: Клиенты, передавшие свои средства в ДУ | E39: =May!F39 -> 432 | F39: 474 | G39: 42 | H39: 0.09722222222
B40: Всего | E40: =May!F40 -> 71017 | F40: 74329 | G40: 3312 | H40: 0.04663672079
B44: Изменение количества уникальных клиентов - ретроспективные данные
B48: Количество уникальных клиентов в Системе торгов (по состоянию на последний день месяца) (ежегодная статистика): | H48: Таблица 1
B49: Группы клиентов | E49: 2011-12-31 | F49: 2012-12-31 | G49: 2013-12-31 | H49: 2014-12-31 | I49: 2015-12-31
B50: Физические лица | E50: 772175 | F50: 805549 | G50: 881844 | H50: 944559 | I50: 1006751
B51: Юридические лица | E51: 16850 | F51: 17821 | G51: 19539 | H51: 20178 | I51: 20753
B52: Иностранные лица | E52: 5058 | F52: 5876 | G52: 6957 | H52: 7486 | I52: 8729
B53: Клиенты, передавшие свои средства в ДУ | E53: 5242 | F53: 5261 | G53: 5182 | H53: 5142 | I53: 3836
B54: Всего | E54: 799325 | F54: 834507 | G54: 913522 | H54: 977365 | I54: 1040069
B82: Количество уникальных клиентов в Системе торгов (по состоянию на последний день месяца) (за последние 6 месяцев): | H82: Таблица 2
B83: Группы клиентов | C83: =EDATE(D83,-1) -> 2016-01-29 | D83: =EDATE(E83,-1) -> 2016-02-29 | E83: =EDATE(F83,-1) -> 2016-03-30 | F83: =EDATE(G83,-1) -> 2016-04-30 | G83: =EDATE(H83,-1) -> 2016-05-30 | H83: =EDATE(E11,1) -> 2016-06-30
B84: Физические лица | C84: 1012875 | D84: 1006765 | E84: 1008379 | F84: 1014752 | G84: 1018892 | H84: 1028991
B85: Юридические лица | C85: 20804 | D85: 18908 | E85: 19035 | F85: 19023 | G85: 19023 | H85: 19118
B86: Иностранные лица | C86: 8764 | D86: 8657 | E86: 8480 | F86: 8800 | G86: 8928 | H86: 9251
B87: Клиенты, передавшие свои средства в ДУ | C87: 3848 | D87: 2930 | E87: 2548 | F87: 1422 | G87: 1400 | H87: 1412
B88: Всего | C88: 1046291 | D88: 1037260 | E88: 1038442 | F88: 1043997 | G88: 1048243 | H88: 1058772
B124: Дополнительные показатели за | C124: =B3 -> 2016-06-30
H127: Таблица 1
B128: Участники торгов | G128: Абсолютные показатели
B129: Количество Участников торгов, имеющих активных клиентов | G129: 364
B133: Списки ведущих операторов фондового рынка - клиенты Участников торгов за | F133: =C6 -> 2016-06-30
B136: Ведущие операторы рынка – число зарегистрированных клиентов | H136: Таблица 1
B137: (по общему количеству уникальных клиентов всех типов, зарегистрированных в системе торгов биржи, в том числе в течение месяца)
B138: Наименование Участника торгов | G138: Количество клиентов
B139: ВТБ 24 (ПАО) | C139: ВТБ 24 (ПАО) | D139: ВТБ 24 (ПАО) | E139: ВТБ 24 (ПАО) | F139: ВТБ 24 (ПАО) | G139: 236402 | H139: 236402
B140: Сбербанк | C140: Сбербанк | D140: Сбербанк | E140: Сбербанк | F140: Сбербанк | G140: 184731 | H140: 184731
B141: ФГ БКС | C141: ФГ БКС | D141: ФГ БКС | E141: ФГ БКС | F141: ФГ БКС | G141: 152263 | H141: 152263
B142: АО "ФИНАМ" | C142: АО "ФИНАМ" | D142: АО "ФИНАМ" | E142: АО "ФИНАМ" | F142: АО "ФИНАМ" | G142: 151730 | H142: 151730
B143: ФГ "ОТКРЫТИЕ" | C143: ФГ "ОТКРЫТИЕ" | D143: ФГ "ОТКРЫТИЕ" | E143: ФГ "ОТКРЫТИЕ" | F143: ФГ "ОТКРЫТИЕ" | G143: 84554 | H143: 84554
B144: АО "АЛЬФА-БАНК" | C144: АО "АЛЬФА-БАНК" | D144: АО "АЛЬФА-БАНК" | E144: АО "АЛЬФА-БАНК" | F144: АО "АЛЬФА-БАНК" | G144: 61981 | H144: 61981
B145: ООО "АТОН" | C145: ООО "АТОН" | D145: ООО "АТОН" | E145: ООО "АТОН" | F145: ООО "АТОН" | G145: 48592 | H145: 48592
B146: АЛОР БРОКЕР | C146: АЛОР БРОКЕР | D146: АЛОР БРОКЕР | E146: АЛОР БРОКЕР | F146: АЛОР БРОКЕР | G146: 32817 | H146: 32817
B147: КИТ Финанс (ООО) | C147: КИТ Финанс (ООО) | D147: КИТ Финанс (ООО) | E147: КИТ Финанс (ООО) | F147: КИТ Финанс (ООО) | G147: 21328 | H147: 21328
B148: ООО "Инвестиционная палата" | C148: ООО "Инвестиционная палата" | D148: ООО "Инвестиционная палата" | E148: ООО "Инвестиционная палата" | F148: ООО "Инвестиционная палата" | G148: 19859 | H148: 19859
B151: Ведущие операторы рынка – число активных клиентов | H151: Таблица 2
B152: (по количеству уникальных клиентов, совершивших хотя бы одну сделку за месяц)
B153: Наименование Участника торгов | G153: Количество клиентов
B154: Сбербанк | C154: Сбербанк | D154: Сбербанк | E154: Сбербанк | F154: Сбербанк | G154: 12671 | H154: 12671
B155: АО "ФИНАМ" | C155: АО "ФИНАМ" | D155: АО "ФИНАМ" | E155: АО "ФИНАМ" | F155: АО "ФИНАМ" | G155: 11453 | H155: 11453
B156: ФГ БКС | C156: ФГ БКС | D156: ФГ БКС | E156: ФГ БКС | F156: ФГ БКС | G156: 11194 | H156: 11194
B157: ВТБ 24 (ПАО) | C157: ВТБ 24 (ПАО) | D157: ВТБ 24 (ПАО) | E157: ВТБ 24 (ПАО) | F157: ВТБ 24 (ПАО) | G157: 10216 | H157: 10216
B158: ФГ "ОТКРЫТИЕ" | C158: ФГ "ОТКРЫТИЕ" | D158: ФГ "ОТКРЫТИЕ" | E158: ФГ "ОТКРЫТИЕ" | F158: ФГ "ОТКРЫТИЕ" | G158: 8668 | H158: 8668
B159: АО "АЛЬФА-БАНК" | C159: АО "АЛЬФА-БАНК" | D159: АО "АЛЬФА-БАНК" | E159: АО "АЛЬФА-БАНК" | F159: АО "АЛЬФА-БАНК" | G159: 4034 | H159: 4034
B160: ООО "АТОН" | C160: ООО "АТОН" | D160: ООО "АТОН" | E160: ООО "АТОН" | F160: ООО "АТОН" | G160: 2784 | H160: 2784
B161: Банк ГПБ (АО) | C161: Банк ГПБ (АО) | D161: Банк ГПБ (АО) | E161: Банк ГПБ (АО) | F161: Банк ГПБ (АО) | G161: 2282 | H161: 2282
B162: ПАО "Промсвязьбанк" | C162: ПАО "Промсвязьбанк" | D162: ПАО "Промсвязьбанк" | E162: ПАО "Промсвязьбанк" | F162: ПАО "Промсвязьбанк" | G162: 1595 | H162: 1595
B163: КИТ Финанс (ООО) | C163: КИТ Финанс (ООО) | D163: КИТ Финанс (ООО) | E163: КИТ Финанс (ООО) | F163: КИТ Финанс (ООО) | G163: 1361 | H163: 1361
B166: Ведущие операторы рынка – объем клиентских операций | H166: Таблица 3
B167: (по стоимостному объему сделок, заключенных в интересах клиентов за месяц)
B168: Наименование Участника торгов | G168: Торговый оборот, руб.
B169: ФГ БКС | C169: ФГ БКС | D169: ФГ БКС | E169: ФГ БКС | F169: ФГ БКС | G169: 1.510923077e+12 | H169: 1.510923077e+12
B170: ФГ "ОТКРЫТИЕ" | C170: ФГ "ОТКРЫТИЕ" | D170: ФГ "ОТКРЫТИЕ" | E170: ФГ "ОТКРЫТИЕ" | F170: ФГ "ОТКРЫТИЕ" | G170: 1.062611598e+12 | H170: 1.062611598e+12
B171: ООО "Ренессанс Брокер" | C171: ООО "Ренессанс Брокер" | D171: ООО "Ренессанс Брокер" | E171: ООО "Ренессанс Брокер" | F171: ООО "Ренессанс Брокер" | G171: 9.380245607e+11 | H171: 9.380245607e+11
B172: ООО "БК РЕГИОН" | C172: ООО "БК РЕГИОН" | D172: ООО "БК РЕГИОН" | E172: ООО "БК РЕГИОН" | F172: ООО "БК РЕГИОН" | G172: 6.610916843e+11 | H172: 6.610916843e+11
B173: Сбербанк | C173: Сбербанк | D173: Сбербанк | E173: Сбербанк | F173: Сбербанк | G173: 4.840238068e+11 | H173: 4.840238068e+11
B174: ООО "ИФК "МЕТРОПОЛЬ" | C174: ООО "ИФК "МЕТРОПОЛЬ" | D174: ООО "ИФК "МЕТРОПОЛЬ" | E174: ООО "ИФК "МЕТРОПОЛЬ" | F174: ООО "ИФК "МЕТРОПОЛЬ" | G174: 3.829799908e+11 | H174: 3.829799908e+11
B175: АО "ФИНАМ" | C175: АО "ФИНАМ" | D175: АО "ФИНАМ" | E175: АО "ФИНАМ" | F175: АО "ФИНАМ" | G175: 3.4761944e+11 | H175: 3.4761944e+11
B176: ПАО "Промсвязьбанк" | C176: ПАО "Промсвязьбанк" | D176: ПАО "Промсвязьбанк" | E176: ПАО "Промсвязьбанк" | F176: ПАО "Промсвязьбанк" | G176: 3.26502281e+11 | H176: 3.26502281e+11
B177: ООО "ИК ВЕЛЕС Капитал" | C177: ООО "ИК ВЕЛЕС Капитал" | D177: ООО "ИК ВЕЛЕС Капитал" | E177: ООО "ИК ВЕЛЕС Капитал" | F177: ООО "ИК ВЕЛЕС Капитал" | G177: 3.247470656e+11 | H177: 3.247470656e+11
B178: ООО "РОНИН" | C178: ООО "РОНИН" | D178: ООО "РОНИН" | E178: ООО "РОНИН" | F178: ООО "РОНИН" | G178: 3.210005065e+11 | H178: 3.210005065e+11

Sheet July
B2: Клиенты Участников торгов Фондовой биржи ММВБ
B3: 2016-07-31
B6: Динамика количества клиентов за | C6: =B3 -> 2016-07-31
B10: Количество зарегистрированных клиентов в Системе торгов (по состоянию на последний день месяца): | H10: Таблица 1
B11: Группы клиентов | E11: =EDATE(B3,-1) -> 2016-06-30 | F11: =B3 -> 2016-07-31 | G11: Изменение (ед.) | H11: Изменение (%)
B12: Физические лица | E12: =June!F12 -> 1352100 | F12: 1578129 | G12: =F12-E12 -> 226029 | H12: =F12/E12-1 -> 0.1671688485
B13: Юридические лица | E13: =June!F13 -> 30939 | F13: 33580 | G13: =F13-E13 -> 2641 | H13: 0.08536151783
B14: Иностранные лица | E14: =June!F14 -> 14056 | F14: 15262 | G14: 1206 | H14: 0.08579965851
B15: Иностранные физические лица | E15: =June!F15 -> 5906 | F15: 7030 | G15: 1124 | H15: 0.190314934
B16: Иностранные юридические лица | E16: =June!F16 -> 8150 | F16: 8232 | G16: 82 | H16: 0.01006134969
B17: Клиенты, передавшие свои средства в ДУ | E17: =June!F17 -> 13590 | F17: 19136 | G17: 5546 | H17: 0.4080941869
B18: Всего | E18: =June!F18 -> 1410685 | F18: 1646107 | G18: 235422 | H18: 0.1668848822
B21: Количество уникальных клиентов в Системе торгов (по состоянию на последний день месяца): | H21: Таблица 2
B22: Группы клиентов | E22: =EDATE(B3,-1) -> 2016-06-30 | F22: =F11 -> 2016-07-31 | G22: Изменение (ед.) | H22: Изменение (%)
B23: Физические лица | E23: =June!F23 -> 1028991 | F23: 1033667 | G23: =F23-E23 -> 4676 | H23: =F23/E23-1 -> 0.004544257433
B24: Юридические лица | E24: =June!F24 -> 19118 | F24: 19019 | G24: =F24-E24 -> -99 | H24: =F24/E24-1 -> -0.005178365938
B25: Иностранные лица | E25: =June!F25 -> 9251 | F25: 8797 | G25: -454 | H25: -0.04907577559
B26: Иностранные физические лица | E26: =June!F26 -> 5517 | F26: 5304 | G26: -213 | H26: -0.0386079391
B27: Иностранные юридические лица | E27: =June!F27 -> 3734 | F27: 3493 | G27: -241 | H27: -0.06454204606
B28: Клиенты, передавшие свои средства в ДУ | E28: =June!F28 -> 1412 | F28: 1620 | G28: 208 | H28: 0.1473087819
B29: Всего | E29: =June!F29 -> 1058772 | F29: 1063103 | G29: 4331 | H29: 0.004090587964
B32: Количество активных клиентов в Системе торгов (совершивших в течение месяца хотя бы одну сделку): | H32: Таблица 3
B33: Группы клиентов | E33: =EDATE(B3,-1) -> 2016-06-30 | F33: =F11 -> 2016-07-31 | G33: Изменение (ед.) | H33: Изменение (%)
B34: Физические лица | E34: =June!F34 -> 72090 | F34: 72824 | G34: =F34-E34 -> 734 | H34: =F34/E34-1 -> 0.0101817173
B35: Юридические лица | E35: =June!F35 -> 1092 | F35: 1031 | G35: -61 | H35: -0.05586080586
B36: Иностранные лица | E36: =June!F36 -> 673 | F36: 622 | G36: -51 | H36: -0.07578008915
B37: Иностранные физические лица | E37: =June!F37 -> 334 | F37: 324 | G37: -10 | H37: -0.02994011976
B38: Иностранные юридические лица | E38: =June!F38 -> 339 | F38: 298 | G38: -41 | H38: -0.1209439528
B39: Клиенты, передавшие свои средства в ДУ | E39: =June!F39 -> 474 | F39: 712 | G39: 238 | H39: 0.5021097046
B40: Всего | E40: =June!F40 -> 74329 | F40: 75189 | G40: 860 | H40: 0.01157018122
B44: Изменение количества уникальных клиентов - ретроспективные данные
B48: Количество уникальных клиентов в Системе торгов (по состоянию на последний день месяца) (ежегодная статистика): | H48: Таблица 1
B49: Группы клиентов | E49: 2011-12-31 | F49: 2012-12-31 | G49: 2013-12-31 | H49: 2014-12-31 | I49: 2015-12-31
B50: Физические лица | E50: 772175 | F50: 805549 | G50: 881844 | H50: 944559 | I50: 1006751
B51: Юридические лица | E51: 16850 | F51: 17821 | G51: 19539 | H51: 20178 | I51: 20753
B52: Иностранные лица | E52: 5058 | F52: 5876 | G52: 6957 | H52: 7486 | I52: 8729
B53: Клиенты, передавшие свои средства в ДУ | E53: 5242 | F53: 5261 | G53: 5182 | H53: 5142 | I53: 3836
B54: Всего | E54: 799325 | F54: 834507 | G54: 913522 | H54: 977365 | I54: 1040069
B82: Количество уникальных клиентов в Системе торгов (по состоянию на последний день месяца) (за последние 6 месяцев): | H82: Таблица 2
B83: Группы клиентов | C83: =EDATE(D83,-1) -> 2016-02-29 | D83: =EDATE(E83,-1) -> 2016-03-30 | E83: =EDATE(F83,-1) -> 2016-04-30 | F83: =EDATE(G83,-1) -> 2016-05-30 | G83: =EDATE(H83,-1) -> 2016-06-30 | H83: =EDATE(E11,1) -> 2016-07-30
B84: Физические лица | C84: 1006765 | D84: 1008379 | E84: 1014752 | F84: 1018892 | G84: 1028991 | H84: 1033667
B85: Юридические лица | C85: 18908 | D85: 19035 | E85: 19023 | F85: 19023 | G85: 19118 | H85: 19019
B86: Иностранные лица | C86: 8657 | D86: 8480 | E86: 8800 | F86: 8928 | G86: 9251 | H86: 8797
B87: Клиенты, передавшие свои средства в ДУ | C87: 2930 | D87: 2548 | E87: 1422 | F87: 1400 | G87: 1412 | H87: 1620
B88: Всего | C88: 1037260 | D88: 1038442 | E88: 1043997 | F88: 1048243 | G88: 1058772 | H88: 1063103
B124: Дополнительные показатели за | C124: =B3 -> 2016-07-31
H127: Таблица 1
B128: Участники торгов | G128: Абсолютные показатели
B129: Количество Участников торгов, имеющих активных клиентов | G129: 352
B133: Списки ведущих операторов фондового рынка - клиенты Участников торгов за | F133: =C6 -> 2016-07-31
B136: Ведущие операторы рынка – число зарегистрированных клиентов | H136: Таблица 1
B137: (по общему количеству уникальных клиентов всех типов, зарегистрированных в системе торгов биржи, в том числе в течение месяца)
B138: Наименование Участника торгов | G138: Количество клиентов
B139: ВТБ 24 (ПАО) | C139: ВТБ 24 (ПАО) | D139: ВТБ 24 (ПАО) | E139: ВТБ 24 (ПАО) | F139: ВТБ 24 (ПАО) | G139: 237807 | H139: 237807
B140: Сбербанк | C140: Сбербанк | D140: Сбербанк | E140: Сбербанк | F140: Сбербанк | G140: 185729 | H140: 185729
B141: ФГ БКС | C141: ФГ БКС | D141: ФГ БКС | E141: ФГ БКС | F141: ФГ БКС | G141: 154003 | H141: 154003
B142: АО "ФИНАМ" | C142: АО "ФИНАМ" | D142: АО "ФИНАМ" | E142: АО "ФИНАМ" | F142: АО "ФИНАМ" | G142: 152985 | H142: 152985
B143: ФГ "ОТКРЫТИЕ" | C143: ФГ "ОТКРЫТИЕ" | D143: ФГ "ОТКРЫТИЕ" | E143: ФГ "ОТКРЫТИЕ" | F143: ФГ "ОТКРЫТИЕ" | G143: 82537 | H143: 82537
B144: АО "АЛЬФА-БАНК" | C144: АО "АЛЬФА-БАНК" | D144: АО "АЛЬФА-БАНК" | E144: АО "АЛЬФА-БАНК" | F144: АО "АЛЬФА-БАНК" | G144: 62133 | H144: 62133
B145: ООО "АТОН" | C145: ООО "АТОН" | D145: ООО "АТОН" | E145: ООО "АТОН" | F145: ООО "АТОН" | G145: 48750 | H145: 48750
B146: АЛОР БРОКЕР | C146: АЛОР БРОКЕР | D146: АЛОР БРОКЕР | E146: АЛОР БРОКЕР | F146: АЛОР БРОКЕР | G146: 32890 | H146: 32890
B147: КИТ Финанс (ООО) | C147: КИТ Финанс (ООО) | D147: КИТ Финанс (ООО) | E147: КИТ Финанс (ООО) | F147: КИТ Финанс (ООО) | G147: 21367 | H147: 21367
B148: ООО "Инвестиционная палата" | C148: ООО "Инвестиционная палата" | D148: ООО "Инвестиционная палата" | E148: ООО "Инвестиционная палата" | F148: ООО "Инвестиционная палата" | G148: 19859 | H148: 19859
B151: Ведущие операторы рынка – число активных клиентов | H151: Таблица 2
B152: (по количеству уникальных клиентов, совершивших хотя бы одну сделку за месяц)
B153: Наименование Участника торгов | G153: Количество клиентов
B154: Сбербанк | C154: Сбербанк | D154: Сбербанк | E154: Сбербанк | F154: Сбербанк | G154: 12947 | H154: 12947
B155: ФГ БКС | C155: ФГ БКС | D155: ФГ БКС | E155: ФГ БКС | F155: ФГ БКС | G155: 11391 | H155: 11391
B156: АО "ФИНАМ" | C156: АО "ФИНАМ" | D156: АО "ФИНАМ" | E156: АО "ФИНАМ" | F156: АО "ФИНАМ" | G156: 11325 | H156: 11325
B157: ВТБ 24 (ПАО) | C157: ВТБ 24 (ПАО) | D157: ВТБ 24 (ПАО) | E157: ВТБ 24 (ПАО) | F157: ВТБ 24 (ПАО) | G157: 10390 | H157: 10390
B158: ФГ "ОТКРЫТИЕ" | C158: ФГ "ОТКРЫТИЕ" | D158: ФГ "ОТКРЫТИЕ" | E158: ФГ "ОТКРЫТИЕ" | F158: ФГ "ОТКРЫТИЕ" | G158: 8956 | H158: 8956
B159: АО "АЛЬФА-БАНК" | C159: АО "АЛЬФА-БАНК" | D159: АО "АЛЬФА-БАНК" | E159: АО "АЛЬФА-БАНК" | F159: АО "АЛЬФА-БАНК" | G159: 3964 | H159: 3964
B160: ООО "АТОН" | C160: ООО "АТОН" | D160: ООО "АТОН" | E160: ООО "АТОН" | F160: ООО "АТОН" | G160: 2746 | H160: 2746
B161: Банк ГПБ (АО) | C161: Банк ГПБ (АО) | D161: Банк ГПБ (АО) | E161: Банк ГПБ (АО) | F161: Банк ГПБ (АО) | G161: 2217 | H161: 2217
B162: ПАО "Промсвязьбанк" | C162: ПАО "Промсвязьбанк" | D162: ПАО "Промсвязьбанк" | E162: ПАО "Промсвязьбанк" | F162: ПАО "Промсвязьбанк" | G162: 1658 | H162: 1658
B163: КИТ Финанс (ООО) | C163: КИТ Финанс (ООО) | D163: КИТ Финанс (ООО) | E163: КИТ Финанс (ООО) | F163: КИТ Финанс (ООО) | G163: 1321 | H163: 1321
B166: Ведущие операторы рынка – объем клиентских операций | H166: Таблица 3
B167: (по стоимостному объему сделок, заключенных в интересах клиентов за месяц)
B168: Наименование Участника торгов | G168: Торговый оборот, руб.
B169: ФГ БКС | C169: ФГ БКС | D169: ФГ БКС | E169: ФГ БКС | F169: ФГ БКС | G169: 1.40364866e+12 | H169: 1.40364866e+12
B170: ФГ "ОТКРЫТИЕ" | C170: ФГ "ОТКРЫТИЕ" | D170: ФГ "ОТКРЫТИЕ" | E170: ФГ "ОТКРЫТИЕ" | F170: ФГ "ОТКРЫТИЕ" | G170: 9.80300616e+11 | H170: 9.80300616e+11
B171: ООО "Ренессанс Брокер" | C171: ООО "Ренессанс Брокер" | D171: ООО "Ренессанс Брокер" | E171: ООО "Ренессанс Брокер" | F171: ООО "Ренессанс Брокер" | G171: 8.784306285e+11 | H171: 8.784306285e+11
B172: Сбербанк | C172: Сбербанк | D172: Сбербанк | E172: Сбербанк | F172: Сбербанк | G172: 5.026357693e+11 | H172: 5.026357693e+11
B173: ООО "БК РЕГИОН" | C173: ООО "БК РЕГИОН" | D173: ООО "БК РЕГИОН" | E173: ООО "БК РЕГИОН" | F173: ООО "БК РЕГИОН" | G173: 4.605259772e+11 | H173: 4.605259772e+11
B174: ООО "ИФК "МЕТРОПОЛЬ" | C174: ООО "ИФК "МЕТРОПОЛЬ" | D174: ООО "ИФК "МЕТРОПОЛЬ" | E174: ООО "ИФК "МЕТРОПОЛЬ" | F174: ООО "ИФК "МЕТРОПОЛЬ" | G174: 4.401125042e+11 | H174: 4.401125042e+11
B175: ПАО "Промсвязьбанк" | C175: ПАО "Промсвязьбанк" | D175: ПАО "Промсвязьбанк" | E175: ПАО "Промсвязьбанк" | F175: ПАО "Промсвязьбанк" | G175: 3.62535657e+11 | H175: 3.62535657e+11
B176: АО "ФИНАМ" | C176: АО "ФИНАМ" | D176: АО "ФИНАМ" | E176: АО "ФИНАМ" | F176: АО "ФИНАМ" | G176: 3.576118971e+11 | H176: 3.576118971e+11
B177: ООО "ИК ВЕЛЕС Капитал" | C177: ООО "ИК ВЕЛЕС Капитал" | D177: ООО "ИК ВЕЛЕС Капитал" | E177: ООО "ИК ВЕЛЕС Капитал" | F177: ООО "ИК ВЕЛЕС Капитал" | G177: 3.298835794e+11 | H177: 3.298835794e+11
B178: ПАО "Совкомбанк" | C178: ПАО "Совкомбанк" | D178: ПАО "Совкомбанк" | E178: ПАО "Совкомбанк" | F178: ПАО "Совкомбанк" | G178: 2.440557715e+11 | H178: 2.440557715e+11

Sheet August
B2: Клиенты Участников торгов Фондовой биржи ММВБ
B3: 2016-08-31
B6: Динамика количества клиентов за | C6: =B3 -> 2016-08-31
B10: Количество зарегистрированных клиентов в Системе торгов (по состоянию на последний день месяца): | H10: Таблица 1
B11: Группы клиентов | E11: =EDATE(B3,-1) -> 2016-07-31 | F11: =B3 -> 2016-08-31 | G11: Изменение (ед.) | H11: Изменение (%)
B12: Физические лица | E12: =July!F12 -> 1578129 | F12: 1456699 | G12: =F12-E12 -> -121430 | H12: =F12/E12-1 -> -0.07694554754
B13: Юридические лица | E13: =July!F13 -> 33580 | F13: 31859 | G13: =F13-E13 -> -1721 | H13: -0.05125074449
B14: Иностранные лица | E14: =July!F14 -> 15262 | F14: 13766 | G14: -1496 | H14: -0.0980212292
B15: Иностранные физические лица | E15: =July!F15 -> 7030 | F15: 5890 | G15: -1140 | H15: -0.1621621622
B16: Иностранные юридические лица | E16: =July!F16 -> 8232 | F16: 7876 | G16: -356 | H16: -0.04324586978
B17: Клиенты, передавшие свои средства в ДУ | E17: =July!F17 -> 19136 | F17: 20000 | G17: 864 | H17: 0.04515050167
B18: Всего | E18: =July!F18 -> 1646107 | F18: 1522324 | G18: -123783 | H18: -0.07519742034
B21: Количество уникальных клиентов в Системе торгов (по состоянию на последний день месяца): | H21: Таблица 2
B22: Группы клиентов | E22: =EDATE(B3,-1) -> 2016-07-31 | F22: =F11 -> 2016-08-31 | G22: Изменение (ед.) | H22: Изменение (%)
B23: Физические лица | E23: =July!F23 -> 1033667 | F23: 1040684 | G23: =F23-E23 -> 7017 | H23: =F23/E23-1 -> 0.006788453148
B24: Юридические лица | E24: =July!F24 -> 19019 | F24: 19083 | G24: =F24-E24 -> 64 | H24: =F24/E24-1 -> 0.003365055997
B25: Иностранные лица | E25: =July!F25 -> 8797 | F25: 8850 | G25: 53 | H25: 0.006024781175
B26: Иностранные физические лица | E26: =July!F26 -> 5304 | F26: 5398 | G26: 94 | H26: 0.0177224736
B27: Иностранные юридические лица | E27: =July!F27 -> 3493 | F27: 3452 | G27: -41 | H27: -0.01173776124
B28: Клиенты, передавшие свои средства в ДУ | E28: =July!F28 -> 1620 | F28: 2017 | G28: 397 | H28: 0.2450617284
B29: Всего | E29: =July!F29 -> 1063103 | F29: 1070634 | G29: 7531 | H29: 0.007083979633
B32: Количество активных клиентов в Системе торгов (совершивших в течение месяца хотя бы одну сделку): | H32: Таблица 3
B33: Группы клиентов | E33: =EDATE(B3,-1) -> 2016-07-31 | F33: =F11 -> 2016-08-31 | G33: Изменение (ед.) | H33: Изменение (%)
B34: Физические лица | E34: =July!F34 -> 72824 | F34: 74793 | G34: =F34-E34 -> 1969 | H34: =F34/E34-1 -> 0.02703778974
B35: Юридические лица | E35: =July!F35 -> 1031 | F35: 1084 | G35: 53 | H35: 0.05140640155
B36: Иностранные лица | E36: =July!F36 -> 622 | F36: 623 | G36: 1 | H36: 0.001607717042
B37: Иностранные физические лица | E37: =July!F37 -> 324 | F37: 322 | G37: -2 | H37: -0.006172839506
B38: Иностранные юридические лица | E38: =July!F38 -> 298 | F38: 301 | G38: 3 | H38: 0.01006711409
B39: Клиенты, передавшие свои средства в ДУ | E39: =July!F39 -> 712 | F39: 1068 | G39: 356 | H39: 0.5
B40: Всего | E40: =July!F40 -> 75189 | F40: 77568 | G40: 2379 | H40: 0.03164026653
B44: Изменение количества уникальных клиентов - ретроспективные данные
B48: Количество уникальных клиентов в Системе торгов (по состоянию на последний день месяца) (ежегодная статистика): | H48: Таблица 1
B49: Группы клиентов | E49: 2011-12-31 | F49: 2012-12-31 | G49: 2013-12-31 | H49: 2014-12-31 | I49: 2015-12-31
B50: Физические лица | E50: 772175 | F50: 805549 | G50: 881844 | H50: 944559 | I50: 1006751
B51: Юридические лица | E51: 16850 | F51: 17821 | G51: 19539 | H51: 20178 | I51: 20753
B52: Иностранные лица | E52: 5058 | F52: 5876 | G52: 6957 | H52: 7486 | I52: 8729
B53: Клиенты, передавшие свои средства в ДУ | E53: 5242 | F53: 5261 | G53: 5182 | H53: 5142 | I53: 3836
B54: Всего | E54: 799325 | F54: 834507 | G54: 913522 | H54: 977365 | I54: 1040069
B82: Количество уникальных клиентов в Системе торгов (по состоянию на последний день месяца) (за последние 6 месяцев): | H82: Таблица 2
B83: Группы клиентов | C83: =EDATE(D83,-1) -> 2016-03-30 | D83: =EDATE(E83,-1) -> 2016-04-30 | E83: =EDATE(F83,-1) -> 2016-05-30 | F83: =EDATE(G83,-1) -> 2016-06-30 | G83: =EDATE(H83,-1) -> 2016-07-31 | H83: =EDATE(E11,1) -> 2016-08-31
B84: Физические лица | C84: 1008379 | D84: 1014752 | E84: 1018892 | F84: 1028991 | G84: 1033667 | H84: 1040684
B85: Юридические лица | C85: 19035 | D85: 19023 | E85: 19023 | F85: 19118 | G85: 19019 | H85: 19083
B86: Иностранные лица | C86: 8480 | D86: 8800 | E86: 8928 | F86: 9251 | G86: 8797 | H86: 8850
B87: Клиенты, передавшие свои средства в ДУ | C87: 2548 | D87: 1422 | E87: 1400 | F87: 1412 | G87: 1620 | H87: 2017
B88: Всего | C88: 1038442 | D88: 1043997 | E88: 1048243 | F88: 1058772 | G88: 1063103 | H88: 1070634
B124: Дополнительные показатели за | C124: =B3 -> 2016-08-31
H127: Таблица 1
B128: Участники торгов | G128: Абсолютные показатели
B129: Количество Участников торгов, имеющих активных клиентов | G129: 350
B133: Списки ведущих операторов фондового рынка - клиенты Участников торгов за | F133: =C6 -> 2016-08-31
B136: Ведущие операторы рынка – число зарегистрированных клиентов | H136: Таблица 1
B137: (по общему количеству уникальных клиентов всех типов, зарегистрированных в системе торгов биржи, в том числе в течение месяца)
B138: Наименование Участника торгов | G138: Количество клиентов
B139: ВТБ 24 (ПАО) | C139: ВТБ 24 (ПАО) | D139: ВТБ 24 (ПАО) | E139: ВТБ 24 (ПАО) | F139: ВТБ 24 (ПАО) | G139: 239833 | H139: 239833
B140: Сбербанк | C140: Сбербанк | D140: Сбербанк | E140: Сбербанк | F140: Сбербанк | G140: 185374 | H140: 185374
B141: ФГ БКС | C141: ФГ БКС | D141: ФГ БКС | E141: ФГ БКС | F141: ФГ БКС | G141: 156304 | H141: 156304
B142: АО "ФИНАМ" | C142: АО "ФИНАМ" | D142: АО "ФИНАМ" | E142: АО "ФИНАМ" | F142: АО "ФИНАМ" | G142: 154223 | H142: 154223
B143: ФГ "ОТКРЫТИЕ" | C143: ФГ "ОТКРЫТИЕ" | D143: ФГ "ОТКРЫТИЕ" | E143: ФГ "ОТКРЫТИЕ" | F143: ФГ "ОТКРЫТИЕ" | G143: 84138 | H143: 84138
B144: АО "АЛЬФА-БАНК" | C144: АО "АЛЬФА-БАНК" | D144: АО "АЛЬФА-БАНК" | E144: АО "АЛЬФА-БАНК" | F144: АО "АЛЬФА-БАНК" | G144: 61312 | H144: 61312
B145: ООО "АТОН" | C145: ООО "АТОН" | D145: ООО "АТОН" | E145: ООО "АТОН" | F145: ООО "АТОН" | G145: 48909 | H145: 48909
B146: АЛОР БРОКЕР | C146: АЛОР БРОКЕР | D146: АЛОР БРОКЕР | E146: АЛОР БРОКЕР | F146: АЛОР БРОКЕР | G146: 32911 | H146: 32911
B147: КИТ Финанс (ООО) | C147: КИТ Финанс (ООО) | D147: КИТ Финанс (ООО) | E147: КИТ Финанс (ООО) | F147: КИТ Финанс (ООО) | G147: 21432 | H147: 21432
B148: ООО "Инвестиционная палата" | C148: ООО "Инвестиционная палата" | D148: ООО "Инвестиционная палата" | E148: ООО "Инвестиционная палата" | F148: ООО "Инвестиционная палата" | G148: 19859 | H148: 19859
B151: Ведущие операторы рынка – число активных клиентов | H151: Таблица 2
B152: (по количеству уникальных клиентов, совершивших хотя бы одну сделку за месяц)
B153: Наименование Участника торгов | G153: Количество клиентов
B154: Сбербанк | C154: Сбербанк | D154: Сбербанк | E154: Сбербанк | F154: Сбербанк | G154: 12979 | H154: 12979
B155: ФГ БКС | C155: ФГ БКС | D155: ФГ БКС | E155: ФГ БКС | F155: ФГ БКС | G155: 11627 | H155: 11627
B156: АО "ФИНАМ" | C156: АО "ФИНАМ" | D156: АО "ФИНАМ" | E156: АО "ФИНАМ" | F156: АО "ФИНАМ" | G156: 11602 | H156: 11602
B157: ВТБ 24 (ПАО) | C157: ВТБ 24 (ПАО) | D157: ВТБ 24 (ПАО) | E157: ВТБ 24 (ПАО) | F157: ВТБ 24 (ПАО) | G157: 10333 | H157: 10333
B158: ФГ "ОТКРЫТИЕ" | C158: ФГ "ОТКРЫТИЕ" | D158: ФГ "ОТКРЫТИЕ" | E158: ФГ "ОТКРЫТИЕ" | F158: ФГ "ОТКРЫТИЕ" | G158: 9289 | H158: 9289
B159: АО "АЛЬФА-БАНК" | C159: АО "АЛЬФА-БАНК" | D159: АО "АЛЬФА-БАНК" | E159: АО "АЛЬФА-БАНК" | F159: АО "АЛЬФА-БАНК" | G159: 4045 | H159: 4045
B160: ООО "АТОН" | C160: ООО "АТОН" | D160: ООО "АТОН" | E160: ООО "АТОН" | F160: ООО "АТОН" | G160: 2776 | H160: 2776
B161: Банк ГПБ (АО) | C161: Банк ГПБ (АО) | D161: Банк ГПБ (АО) | E161: Банк ГПБ (АО) | F161: Банк ГПБ (АО) | G161: 2195 | H161: 2195
B162: ПАО "Промсвязьбанк" | C162: ПАО "Промсвязьбанк" | D162: ПАО "Промсвязьбанк" | E162: ПАО "Промсвязьбанк" | F162: ПАО "Промсвязьбанк" | G162: 1771 | H162: 1771
B163: КИТ Финанс (ООО) | C163: КИТ Финанс (ООО) | D163: КИТ Финанс (ООО) | E163: КИТ Финанс (ООО) | F163: КИТ Финанс (ООО) | G163: 1384 | H163: 1384
B166: Ведущие операторы рынка – объем клиентских операций | H166: Таблица 3
B167: (по стоимостному объему сделок, заключенных в интересах клиентов за месяц)
B168: Наименование Участника торгов | G168: Торговый оборот, руб.
B169: ФГ БКС | C169: ФГ БКС | D169: ФГ БКС | E169: ФГ БКС | F169: ФГ БКС | G169: 1.436968591e+12 | H169: 1.436968591e+12
B170: ФГ "ОТКРЫТИЕ" | C170: ФГ "ОТКРЫТИЕ" | D170: ФГ "ОТКРЫТИЕ" | E170: ФГ "ОТКРЫТИЕ" | F170: ФГ "ОТКРЫТИЕ" | G170: 1.320967398e+12 | H170: 1.320967398e+12
B171: ООО "Ренессанс Брокер" | C171: ООО "Ренессанс Брокер" | D171: ООО "Ренессанс Брокер" | E171: ООО "Ренессанс Брокер" | F171: ООО "Ренессанс Брокер" | G171: 9.04323438e+11 | H171: 9.04323438e+11
B172: ПАО "Промсвязьбанк" | C172: ПАО "Промсвязьбанк" | D172: ПАО "Промсвязьбанк" | E172: ПАО "Промсвязьбанк" | F172: ПАО "Промсвязьбанк" | G172: 5.155530595e+11 | H172: 5.155530595e+11
B173: ООО "БК РЕГИОН" | C173: ООО "БК РЕГИОН" | D173: ООО "БК РЕГИОН" | E173: ООО "БК РЕГИОН" | F173: ООО "БК РЕГИОН" | G173: 4.903027009e+11 | H173: 4.903027009e+11
B174: Сбербанк | C174: Сбербанк | D174: Сбербанк | E174: Сбербанк | F174: Сбербанк | G174: 4.381803652e+11 | H174: 4.381803652e+11
B175: ООО "ИФК "МЕТРОПОЛЬ" | C175: ООО "ИФК "МЕТРОПОЛЬ" | D175: ООО "ИФК "МЕТРОПОЛЬ" | E175: ООО "ИФК "МЕТРОПОЛЬ" | F175: ООО "ИФК "МЕТРОПОЛЬ" | G175: 4.301019357e+11 | H175: 4.301019357e+11
B176: АО "ФИНАМ" | C176: АО "ФИНАМ" | D176: АО "ФИНАМ" | E176: АО "ФИНАМ" | F176: АО "ФИНАМ" | G176: 3.875370054e+11 | H176: 3.875370054e+11
B177: ООО "ИК ВЕЛЕС Капитал" | C177: ООО "ИК ВЕЛЕС Капитал" | D177: ООО "ИК ВЕЛЕС Капитал" | E177: ООО "ИК ВЕЛЕС Капитал" | F177: ООО "ИК ВЕЛЕС Капитал" | G177: 3.195998059e+11 | H177: 3.195998059e+11
B178: ООО "УНИВЕР Капитал" | C178: ООО "УНИВЕР Капитал" | D178: ООО "УНИВЕР Капитал" | E178: ООО "УНИВЕР Капитал" | F178: ООО "УНИВЕР Капитал" | G178: 2.980761294e+11 | H178: 2.980761294e+11

Sheet September
B2: Клиенты Участников торгов Фондовой биржи ММВБ
B3: 2016-09-30
B6: Динамика количества клиентов за | C6: =B3 -> 2016-09-30
B10: Количество зарегистрированных клиентов в Системе торгов (по состоянию на последний день месяца): | H10: Таблица 1
B11: Группы клиентов | E11: =EDATE(B3,-1) -> 2016-08-30 | F11: =B3 -> 2016-09-30 | G11: Изменение (ед.) | H11: Изменение (%)
B12: Физические лица | E12: =August!F12 -> 1456699 | F12: 1401262 | G12: =F12-E12 -> -55437 | H12: =F12/E12-1 -> -0.03805659234
B13: Юридические лица | E13: =August!F13 -> 31859 | F13: 30895 | G13: =F13-E13 -> -964 | H13: -0.03025832575
B14: Иностранные лица | E14: =August!F14 -> 13766 | F14: 13958 | G14: 192 | H14: 0.01394740665
B15: Иностранные физические лица | E15: =August!F15 -> 5890 | F15: 6050 | G15: 160 | H15: 0.02716468591
B16: Иностранные юридические лица | E16: =August!F16 -> 7876 | F16: 7908 | G16: 32 | H16: 0.00406297613
B17: Клиенты, передавшие свои средства в ДУ | E17: =August!F17 -> 20000 | F17: 22333 | G17: 2333 | H17: 0.11665
B18: Всего | E18: =August!F18 -> 1522324 | F18: 1468448 | G18: -53876 | H18: -0.03539062644
B21: Количество уникальных клиентов в Системе торгов (по состоянию на последний день месяца): | H21: Таблица 2
B22: Группы клиентов | E22: =EDATE(B3,-1) -> 2016-08-30 | F22: =F11 -> 2016-09-30 | G22: Изменение (ед.) | H22: Изменение (%)
B23: Физические лица | E23: =August!F23 -> 1040684 | F23: 1049230 | G23: =F23-E23 -> 8546 | H23: =F23/E23-1 -> 0.008211906784
B24: Юридические лица | E24: =August!F24 -> 19083 | F24: 19110 | G24: =F24-E24 -> 27 | H24: =F24/E24-1 -> 0.001414871875
B25: Иностранные лица | E25: =August!F25 -> 8850 | F25: 8966 | G25: 116 | H25: 0.01310734463
B26: Иностранные физические лица | E26: =August!F26 -> 5398 | F26: 5512 | G26: 114 | H26: 0.02111893294
B27: Иностранные юридические лица | E27: =August!F27 -> 3452 | F27: 3454 | G27: 2 | H27: 0.0005793742758
B28: Клиенты, передавшие свои средства в ДУ | E28: =August!F28 -> 2017 | F28: 2602 | G28: 585 | H28: 0.290034705
B29: Всего | E29: =August!F29 -> 1070634 | F29: 1079908 | G29: 9274 | H29: 0.008662157189
B32: Количество активных клиентов в Системе торгов (совершивших в течение месяца хотя бы одну сделку): | H32: Таблица 3
B33: Группы клиентов | E33: =EDATE(B3,-1) -> 2016-08-30 | F33: =F11 -> 2016-09-30 | G33: Изменение (ед.) | H33: Изменение (%)
B34: Физические лица | E34: =August!F34 -> 74793 | F34: 77990 | G34: =F34-E34 -> 3197 | H34: =F34/E34-1 -> 0.04274464188
B35: Юридические лица | E35: =August!F35 -> 1084 | F35: 1101 | G35: 17 | H35: 0.01568265683
B36: Иностранные лица | E36: =August!F36 -> 623 | F36: 671 | G36: 48 | H36: 0.07704654896
B37: Иностранные физические лица | E37: =August!F37 -> 322 | F37: 362 | G37: 40 | H37: 0.1242236025
B38: Иностранные юридические лица | E38: =August!F38 -> 301 | F38: 309 | G38: 8 | H38: 0.02657807309
B39: Клиенты, передавшие свои средства в ДУ | E39: =August!F39 -> 1068 | F39: 1076 | G39: 8 | H39: 0.007490636704
B40: Всего | E40: =August!F40 -> 77568 | F40: 80838 | G40: 3270 | H40: 0.04215655941
B44: Изменение количества уникальных клиентов - ретроспективные данные
B48: Количество уникальных клиентов в Системе торгов (по состоянию на последний день месяца) (ежегодная статистика): | H48: Таблица 1
B49: Группы клиентов | E49: 2011-12-31 | F49: 2012-12-31 | G49: 2013-12-31 | H49: 2014-12-31 | I49: 2015-12-31
B50: Физические лица | E50: 772175 | F50: 805549 | G50: 881844 | H50: 944559 | I50: 1006751
B51: Юридические лица | E51: 16850 | F51: 17821 | G51: 19539 | H51: 20178 | I51: 20753
B52: Иностранные лица | E52: 5058 | F52: 5876 | G52: 6957 | H52: 7486 | I52: 8729
B53: Клиенты, передавшие свои средства в ДУ | E53: 5242 | F53: 5261 | G53: 5182 | H53: 5142 | I53: 3836
B54: Всего | E54: 799325 | F54: 834507 | G54: 913522 | H54: 977365 | I54: 1040069
B82: Количество уникальных клиентов в Системе торгов (по состоянию на последний день месяца) (за последние 6 месяцев): | H82: Таблица 2
B83: Группы клиентов | C83: =EDATE(D83,-1) -> 2016-04-30 | D83: =EDATE(E83,-1) -> 2016-05-30 | E83: =EDATE(F83,-1) -> 2016-06-30 | F83: =EDATE(G83,-1) -> 2016-07-30 | G83: =EDATE(H83,-1) -> 2016-08-30 | H83: =EDATE(E11,1) -> 2016-09-30
B84: Физические лица | C84: 1014752 | D84: 1018892 | E84: 1028991 | F84: 1033667 | G84: 1040684 | H84: 1049230
B85: Юридические лица | C85: 19023 | D85: 19023 | E85: 19118 | F85: 19019 | G85: 19083 | H85: 19110
B86: Иностранные лица | C86: 8800 | D86: 8928 | E86: 9251 | F86: 8797 | G86: 8850 | H86: 8966
B87: Клиенты, передавшие свои средства в ДУ | C87: 1422 | D87: 1400 | E87: 1412 | F87: 1620 | G87: 2017 | H87: 2602
B88: Всего | C88: 1043997 | D88: 1048243 | E88: 1058772 | F88: 1063103 | G88: 1070634 | H88: 1079908
B124: Дополнительные показатели за | C124: =B3 -> 2016-09-30
H127: Таблица 1
B128: Участники торгов | G128: Абсолютные показатели
B129: Количество Участников торгов, имеющих активных клиентов | G129: 352
B133: Списки ведущих операторов фондового рынка - клиенты Участников торгов за | F133: =C6 -> 2016-09-30
B136: Ведущие операторы рынка – число зарегистрированных клиентов | H136: Таблица 1
B137: (по общему количеству уникальных клиентов всех типов, зарегистрированных в системе торгов биржи, в том числе в течение месяца)
B138: Наименование Участника торгов | G138: Количество клиентов
B139: ВТБ 24 (ПАО) | C139: ВТБ 24 (ПАО) | D139: ВТБ 24 (ПАО) | E139: ВТБ 24 (ПАО) | F139: ВТБ 24 (ПАО) | G139: 242051 | H139: 242051
B140: Сбербанк | C140: Сбербанк | D140: Сбербанк | E140: Сбербанк | F140: Сбербанк | G140: 187250 | H140: 187250
B141: ФГ БКС | C141: ФГ БКС | D141: ФГ БКС | E141: ФГ БКС | F141: ФГ БКС | G141: 158474 | H141: 158474
B142: АО "ФИНАМ" | C142: АО "ФИНАМ" | D142: АО "ФИНАМ" | E142: АО "ФИНАМ" | F142: АО "ФИНАМ" | G142: 155636 | H142: 155636
B143: ФГ "ОТКРЫТИЕ" | C143: ФГ "ОТКРЫТИЕ" | D143: ФГ "ОТКРЫТИЕ" | E143: ФГ "ОТКРЫТИЕ" | F143: ФГ "ОТКРЫТИЕ" | G143: 86071 | H143: 86071
B144: АО "АЛЬФА-БАНК" | C144: АО "АЛЬФА-БАНК" | D144: АО "АЛЬФА-БАНК" | E144: АО "АЛЬФА-БАНК" | F144: АО "АЛЬФА-БАНК" | G144: 61394 | H144: 61394
B145: ООО "АТОН" | C145: ООО "АТОН" | D145: ООО "АТОН" | E145: ООО "АТОН" | F145: ООО "АТОН" | G145: 49061 | H145: 49061
B146: АЛОР БРОКЕР | C146: АЛОР БРОКЕР | D146: АЛОР БРОКЕР | E146: АЛОР БРОКЕР | F146: АЛОР БРОКЕР | G146: 32983 | H146: 32983
B147: КИТ Финанс (ООО) | C147: КИТ Финанс (ООО) | D147: КИТ Финанс (ООО) | E147: КИТ Финанс (ООО) | F147: КИТ Финанс (ООО) | G147: 21491 | H147: 21491
B148: ООО "Инвестиционная палата" | C148: ООО "Инвестиционная палата" | D148: ООО "Инвестиционная палата" | E148: ООО "Инвестиционная палата" | F148: ООО "Инвестиционная палата" | G148: 19859 | H148: 19859
B151: Ведущие операторы рынка – число активных клиентов | H151: Таблица 2
B152: (по количеству уникальных клиентов, совершивших хотя бы одну сделку за месяц)
B153: Наименование Участника торгов | G153: Количество клиентов
B154: Сбербанк | C154: Сбербанк | D154: Сбербанк | E154: Сбербанк | F154: Сбербанк | G154: 13266 | H154: 13266
B155: ФГ БКС | C155: ФГ БКС | D155: ФГ БКС | E155: ФГ БКС | F155: ФГ БКС | G155: 12008 | H155: 12008
B156: АО "ФИНАМ" | C156: АО "ФИНАМ" | D156: АО "ФИНАМ" | E156: АО "ФИНАМ" | F156: АО "ФИНАМ" | G156: 11970 | H156: 11970
B157: ВТБ 24 (ПАО) | C157: ВТБ 24 (ПАО) | D157: ВТБ 24 (ПАО) | E157: ВТБ 24 (ПАО) | F157: ВТБ 24 (ПАО) | G157: 10893 | H157: 10893
B158: ФГ "ОТКРЫТИЕ" | C158: ФГ "ОТКРЫТИЕ" | D158: ФГ "ОТКРЫТИЕ" | E158: ФГ "ОТКРЫТИЕ" | F158: ФГ "ОТКРЫТИЕ" | G158: 9748 | H158: 9748
B159: АО "АЛЬФА-БАНК" | C159: АО "АЛЬФА-БАНК" | D159: АО "АЛЬФА-БАНК" | E159: АО "АЛЬФА-БАНК" | F159: АО "АЛЬФА-БАНК" | G159: 4169 | H159: 4169
B160: ООО "АТОН" | C160: ООО "АТОН" | D160: ООО "АТОН" | E160: ООО "АТОН" | F160: ООО "АТОН" | G160: 2893 | H160: 2893
B161: Банк ГПБ (АО) | C161: Банк ГПБ (АО) | D161: Банк ГПБ (АО) | E161: Банк ГПБ (АО) | F161: Банк ГПБ (АО) | G161: 2272 | H161: 2272
B162: ПАО "Промсвязьбанк" | C162: ПАО "Промсвязьбанк" | D162: ПАО "Промсвязьбанк" | E162: ПАО "Промсвязьбанк" | F162: ПАО "Промсвязьбанк" | G162: 1791 | H162: 1791
B163: ООО ФК "РГС Инвестиции" | C163: ООО ФК "РГС Инвестиции" | D163: ООО ФК "РГС Инвестиции" | E163: ООО ФК "РГС Инвестиции" | F163: ООО ФК "РГС Инвестиции" | G163: 1761 | H163: 1761
B166: Ведущие операторы рынка – объем клиентских операций | H166: Таблица 3
B167: (по стоимостному объему сделок, заключенных в интересах клиентов за месяц)
B168: Наименование Участника торгов | G168: Торговый оборот, руб.
B169: ФГ БКС | C169: ФГ БКС | D169: ФГ БКС | E169: ФГ БКС | F169: ФГ БКС | G169: 1.436968591e+12 | H169: 1.436968591e+12
B170: ФГ "ОТКРЫТИЕ" | C170: ФГ "ОТКРЫТИЕ" | D170: ФГ "ОТКРЫТИЕ" | E170: ФГ "ОТКРЫТИЕ" | F170: ФГ "ОТКРЫТИЕ" | G170: 1.320967398e+12 | H170: 1.320967398e+12
B171: ООО "Ренессанс Брокер" | C171: ООО "Ренессанс Брокер" | D171: ООО "Ренессанс Брокер" | E171: ООО "Ренессанс Брокер" | F171: ООО "Ренессанс Брокер" | G171: 9.04323438e+11 | H171: 9.04323438e+11
B172: ПАО "Промсвязьбанк" | C172: ПАО "Промсвязьбанк" | D172: ПАО "Промсвязьбанк" | E172: ПАО "Промсвязьбанк" | F172: ПАО "Промсвязьбанк" | G172: 5.155530595e+11 | H172: 5.155530595e+11
B173: ООО "БК РЕГИОН" | C173: ООО "БК РЕГИОН" | D173: ООО "БК РЕГИОН" | E173: ООО "БК РЕГИОН" | F173: ООО "БК РЕГИОН" | G173: 4.903027009e+11 | H173: 4.903027009e+11
B174: Сбербанк | C174: Сбербанк | D174: Сбербанк | E174: Сбербанк | F174: Сбербанк | G174: 4.381803652e+11 | H174: 4.381803652e+11
B175: ООО "ИФК "МЕТРОПОЛЬ" | C175: ООО "ИФК "МЕТРОПОЛЬ" | D175: ООО "ИФК "МЕТРОПОЛЬ" | E175: ООО "ИФК "МЕТРОПОЛЬ" | F175: ООО "ИФК "МЕТРОПОЛЬ" | G175: 4.301019357e+11 | H175: 4.301019357e+11
B176: АО "ФИНАМ" | C176: АО "ФИНАМ" | D176: АО "ФИНАМ" | E176: АО "ФИНАМ" | F176: АО "ФИНАМ" | G176: 3.875370054e+11 | H176: 3.875370054e+11
B177: ООО "ИК ВЕЛЕС Капитал" | C177: ООО "ИК ВЕЛЕС Капитал" | D177: ООО "ИК ВЕЛЕС Капитал" | E177: ООО "ИК ВЕЛЕС Капитал" | F177: ООО "ИК ВЕЛЕС Капитал" | G177: 3.195998059e+11 | H177: 3.195998059e+11
B178: ООО "УНИВЕР Капитал" | C178: ООО "УНИВЕР Капитал" | D178: ООО "УНИВЕР Капитал" | E178: ООО "УНИВЕР Капитал" | F178: ООО "УНИВЕР Капитал" | G178: 2.980761294e+11 | H178: 2.980761294e+11

Sheet October
B2: Клиенты Участников торгов Фондовой биржи ММВБ
B3: 2016-10-30
B6: Динамика количества клиентов за | C6: =B3 -> 2016-10-30
B10: Количество зарегистрированных клиентов в Системе торгов (по состоянию на последний день месяца): | H10: Таблица 1
B11: Группы клиентов | E11: =EDATE(B3,-1) -> 2016-09-30 | F11: =B3 -> 2016-10-30 | G11: Изменение (ед.) | H11: Изменение (%)
B12: Физические лица | E12: =September!F12 -> 1401262 | F12: 1432458 | G12: =F12-E12 -> 31196 | H12: =F12/E12-1 -> 0.02226278883
B13: Юридические лица | E13: =September!F13 -> 30895 | F13: 30842 | G13: =F13-E13 -> -53 | H13: -0.001715487943
B14: Иностранные лица | E14: =September!F14 -> 13958 | F14: 13811 | G14: -147 | H14: -0.01053159478
B15: Иностранные физические лица | E15: =September!F15 -> 6050 | F15: 6153 | G15: 103 | H15: 0.01702479339
B16: Иностранные юридические лица | E16: =September!F16 -> 7908 | F16: 7658 | G16: -250 | H16: -0.03161355589
B17: Клиенты, передавшие свои средства в ДУ | E17: =September!F17 -> 22333 | F17: 26822 | G17: 4489 | H17: 0.201003
B18: Всего | E18: =September!F18 -> 1468448 | F18: 1503933 | G18: 35485 | H18: 0.02416496873
B21: Количество уникальных клиентов в Системе торгов (по состоянию на последний день месяца): | H21: Таблица 2
B22: Группы клиентов | E22: =EDATE(B3,-1) -> 2016-09-30 | F22: =F11 -> 2016-10-30 | G22: Изменение (ед.) | H22: Изменение (%)
B23: Физические лица | E23: =September!F23 -> 1049230 | F23: 1061843 | G23: =F23-E23 -> 12613 | H23: =F23/E23-1 -> 0.0120211965
B24: Юридические лица | E24: =September!F24 -> 19110 | F24: 18990 | G24: =F24-E24 -> -120 | H24: =F24/E24-1 -> -0.006279434851
B25: Иностранные лица | E25: =September!F25 -> 8966 | F25: 9026 | G25: 60 | H25: 0.006691947357
B26: Иностранные физические лица | E26: =September!F26 -> 5512 | F26: 5589 | G26: 77 | H26: 0.01396952104
B27: Иностранные юридические лица | E27: =September!F27 -> 3454 | F27: 3437 | G27: -17 | H27: -0.004921829763
B28: Клиенты, передавшие свои средства в ДУ | E28: =September!F28 -> 2602 | F28: 7021 | G28: 4419 | H28: 1.698308993
B29: Всего | E29: =September!F29 -> 1079908 | F29: 1096880 | G29: 16972 | H29: 0.0157161536
B32: Количество активных клиентов в Системе торгов (совершивших в течение месяца хотя бы одну сделку): | H32: Таблица 3
B33: Группы клиентов | E33: =EDATE(B3,-1) -> 2016-09-30 | F33: =F11 -> 2016-10-30 | G33: Изменение (ед.) | H33: Изменение (%)
B34: Физические лица | E34: =September!F34 -> 77990 | F34: 75984 | G34: =F34-E34 -> -2006 | H34: =F34/E34-1 -> -0.02572124631
B35: Юридические лица | E35: =September!F35 -> 1101 | F35: 1066 | G35: -35 | H35: -0.03178928247
B36: Иностранные лица | E36: =September!F36 -> 671 | F36: 654 | G36: -17 | H36: -0.02533532042
B37: Иностранные физические лица | E37: =September!F37 -> 362 | F37: 334 | G37: -28 | H37: -0.0773480663
B38: Иностранные юридические лица | E38: =September!F38 -> 309 | F38: 320 | G38: 11 | H38: 0.0355987055
B39: Клиенты, передавшие свои средства в ДУ | E39: =September!F39 -> 1076 | F39: 3423 | G39: 2347 | H39: 2.181226766
B40: Всего | E40: =September!F40 -> 80838 | F40: 81127 | G40: 289 | H40: 0.003575051337
B44: Изменение количества уникальных клиентов - ретроспективные данные
B48: Количество уникальных клиентов в Системе торгов (по состоянию на последний день месяца) (ежегодная статистика): | H48: Таблица 1
B49: Группы клиентов | E49: 2011-12-31 | F49: 2012-12-31 | G49: 2013-12-31 | H49: 2014-12-31 | I49: 2015-12-31
B50: Физические лица | E50: 772175 | F50: 805549 | G50: 881844 | H50: 944559 | I50: 1006751
B51: Юридические лица | E51: 16850 | F51: 17821 | G51: 19539 | H51: 20178 | I51: 20753
B52: Иностранные лица | E52: 5058 | F52: 5876 | G52: 6957 | H52: 7486 | I52: 8729
B53: Клиенты, передавшие свои средства в ДУ | E53: 5242 | F53: 5261 | G53: 5182 | H53: 5142 | I53: 3836
B54: Всего | E54: 799325 | F54: 834507 | G54: 913522 | H54: 977365 | I54: 1040069
B82: Количество уникальных клиентов в Системе торгов (по состоянию на последний день месяца) (за последние 6 месяцев): | H82: Таблица 2
B83: Группы клиентов | C83: =EDATE(D83,-1) -> 2016-05-30 | D83: =EDATE(E83,-1) -> 2016-06-30 | E83: =EDATE(F83,-1) -> 2016-07-30 | F83: =EDATE(G83,-1) -> 2016-08-30 | G83: =EDATE(H83,-1) -> 2016-09-30 | H83: =EDATE(E11,1) -> 2016-10-30
B84: Физические лица | C84: 1018892 | D84: 1028991 | E84: 1033667 | F84: 1040684 | G84: 1049230 | H84: 1061843
B85: Юридические лица | C85: 19023 | D85: 19118 | E85: 19019 | F85: 19083 | G85: 19110 | H85: 18990
B86: Иностранные лица | C86: 8928 | D86: 9251 | E86: 8797 | F86: 8850 | G86: 8966 | H86: 9026
B87: Клиенты, передавшие свои средства в ДУ | C87: 1400 | D87: 1412 | E87: 1620 | F87: 2017 | G87: 2602 | H87: 7021
B88: Всего | C88: 1048243 | D88: 1058772 | E88: 1063103 | F88: 1070634 | G88: 1079908 | H88: 1096880
B124: Дополнительные показатели за | C124: =B3 -> 2016-10-30
H127: Таблица 1
B128: Участники торгов | G128: Абсолютные показатели
B129: Количество Участников торгов, имеющих активных клиентов | G129: 350
B133: Списки ведущих операторов фондового рынка - клиенты Участников торгов за | F133: =C6 -> 2016-10-30
B136: Ведущие операторы рынка – число зарегистрированных клиентов | H136: Таблица 1
B137: (по общему количеству уникальных клиентов всех типов, зарегистрированных в системе торгов биржи, в том числе в течение месяца)
B138: Наименование Участника торгов | G138: Количество клиентов
B139: ВТБ 24 (ПАО) | C139: ВТБ 24 (ПАО) | D139: ВТБ 24 (ПАО) | E139: ВТБ 24 (ПАО) | F139: ВТБ 24 (ПАО) | G139: 244155 | H139: 244155
B140: Сбербанк | C140: Сбербанк | D140: Сбербанк | E140: Сбербанк | F140: Сбербанк | G140: 189752 | H140: 189752
B141: ФГ БКС | C141: ФГ БКС | D141: ФГ БКС | E141: ФГ БКС | F141: ФГ БКС | G141: 162846 | H141: 162846
B142: АО "ФИНАМ" | C142: АО "ФИНАМ" | D142: АО "ФИНАМ" | E142: АО "ФИНАМ" | F142: АО "ФИНАМ" | G142: 157189 | H142: 157189
B143: ФГ "ОТКРЫТИЕ" | C143: ФГ "ОТКРЫТИЕ" | D143: ФГ "ОТКРЫТИЕ" | E143: ФГ "ОТКРЫТИЕ" | F143: ФГ "ОТКРЫТИЕ" | G143: 87739 | H143: 87739
B144: АО "АЛЬФА-БАНК" | C144: АО "АЛЬФА-БАНК" | D144: АО "АЛЬФА-БАНК" | E144: АО "АЛЬФА-БАНК" | F144: АО "АЛЬФА-БАНК" | G144: 61506 | H144: 61506
B145: ООО "АТОН" | C145: ООО "АТОН" | D145: ООО "АТОН" | E145: ООО "АТОН" | F145: ООО "АТОН" | G145: 49237 | H145: 49237
B146: АЛОР БРОКЕР | C146: АЛОР БРОКЕР | D146: АЛОР БРОКЕР | E146: АЛОР БРОКЕР | F146: АЛОР БРОКЕР | G146: 33076 | H146: 33076
B147: КИТ Финанс (ООО) | C147: КИТ Финанс (ООО) | D147: КИТ Финанс (ООО) | E147: КИТ Финанс (ООО) | F147: КИТ Финанс (ООО) | G147: 21603 | H147: 21603
B148: ООО "Инвестиционная палата" | C148: ООО "Инвестиционная палата" | D148: ООО "Инвестиционная палата" | E148: ООО "Инвестиционная палата" | F148: ООО "Инвестиционная палата" | G148: 19859 | H148: 19859
B151: Ведущие операторы рынка – число активных клиентов | H151: Таблица 2
B152: (по количеству уникальных клиентов, совершивших хотя бы одну сделку за месяц)
B153: Наименование Участника торгов | G153: Количество клиентов
B154: Сбербанк | C154: Сбербанк | D154: Сбербанк | E154: Сбербанк | F154: Сбербанк | G154: 12271 | H154: 12271
B155: АО "ФИНАМ" | C155: АО "ФИНАМ" | D155: АО "ФИНАМ" | E155: АО "ФИНАМ" | F155: АО "ФИНАМ" | G155: 11904 | H155: 11904
B156: ФГ БКС | C156: ФГ БКС | D156: ФГ БКС | E156: ФГ БКС | F156: ФГ БКС | G156: 11576 | H156: 11576
B157: ВТБ 24 (ПАО) | C157: ВТБ 24 (ПАО) | D157: ВТБ 24 (ПАО) | E157: ВТБ 24 (ПАО) | F157: ВТБ 24 (ПАО) | G157: 11141 | H157: 11141
B158: ФГ "ОТКРЫТИЕ" | C158: ФГ "ОТКРЫТИЕ" | D158: ФГ "ОТКРЫТИЕ" | E158: ФГ "ОТКРЫТИЕ" | F158: ФГ "ОТКРЫТИЕ" | G158: 9360 | H158: 9360
B159: АО "АЛЬФА-БАНК" | C159: АО "АЛЬФА-БАНК" | D159: АО "АЛЬФА-БАНК" | E159: АО "АЛЬФА-БАНК" | F159: АО "АЛЬФА-БАНК" | G159: 3853 | H159: 3853
B160: ООО "АТОН" | C160: ООО "АТОН" | D160: ООО "АТОН" | E160: ООО "АТОН" | F160: ООО "АТОН" | G160: 2753 | H160: 2753
B161: Банк ГПБ (АО) | C161: Банк ГПБ (АО) | D161: Банк ГПБ (АО) | E161: Банк ГПБ (АО) | F161: Банк ГПБ (АО) | G161: 2304 | H161: 2304
B162: ООО УК "Альфа-Капитал" | C162: ООО УК "Альфа-Капитал" | D162: ООО УК "Альфа-Капитал" | E162: ООО УК "Альфа-Капитал" | F162: ООО УК "Альфа-Капитал" | G162: 2222 | H162: 2222
B163: ПАО "Промсвязьбанк" | C163: ПАО "Промсвязьбанк" | D163: ПАО "Промсвязьбанк" | E163: ПАО "Промсвязьбанк" | F163: ПАО "Промсвязьбанк" | G163: 1845 | H163: 1845
B166: Ведущие операторы рынка – объем клиентских операций | H166: Таблица 3
B167: (по стоимостному объему сделок, заключенных в интересах клиентов за месяц)
B168: Наименование Участника торгов | G168: Торговый оборот, руб.
B169: ФГ "ОТКРЫТИЕ" | C169: ФГ "ОТКРЫТИЕ" | D169: ФГ "ОТКРЫТИЕ" | E169: ФГ "ОТКРЫТИЕ" | F169: ФГ "ОТКРЫТИЕ" | G169: 1.739515729e+12 | H169: 1.739515729e+12
B170: ФГ БКС | C170: ФГ БКС | D170: ФГ БКС | E170: ФГ БКС | F170: ФГ БКС | G170: 1.35460075e+12 | H170: 1.35460075e+12
B171: ООО "Ренессанс Брокер" | C171: ООО "Ренессанс Брокер" | D171: ООО "Ренессанс Брокер" | E171: ООО "Ренессанс Брокер" | F171: ООО "Ренессанс Брокер" | G171: 1.070668419e+12 | H171: 1.070668419e+12
B172: ПАО "Промсвязьбанк" | C172: ПАО "Промсвязьбанк" | D172: ПАО "Промсвязьбанк" | E172: ПАО "Промсвязьбанк" | F172: ПАО "Промсвязьбанк" | G172: 5.768828608e+11 | H172: 5.768828608e+11
B173: ООО "БК РЕГИОН" | C173: ООО "БК РЕГИОН" | D173: ООО "БК РЕГИОН" | E173: ООО "БК РЕГИОН" | F173: ООО "БК РЕГИОН" | G173: 5.071897298e+11 | H173: 5.071897298e+11
B174: Сбербанк | C174: Сбербанк | D174: Сбербанк | E174: Сбербанк | F174: Сбербанк | G174: 4.65952895e+11 | H174: 4.65952895e+11
B175: ООО "ИФК "МЕТРОПОЛЬ" | C175: ООО "ИФК "МЕТРОПОЛЬ" | D175: ООО "ИФК "МЕТРОПОЛЬ" | E175: ООО "ИФК "МЕТРОПОЛЬ" | F175: ООО "ИФК "МЕТРОПОЛЬ" | G175: 4.487050932e+11 | H175: 4.487050932e+11
B176: АО "ФИНАМ" | C176: АО "ФИНАМ" | D176: АО "ФИНАМ" | E176: АО "ФИНАМ" | F176: АО "ФИНАМ" | G176: 3.850047585e+11 | H176: 3.850047585e+11
B177: ООО "РОНИН" | C177: ООО "РОНИН" | D177: ООО "РОНИН" | E177: ООО "РОНИН" | F177: ООО "РОНИН" | G177: 3.213506326e+11 | H177: 3.213506326e+11
B178: ООО "ИК ВЕЛЕС Капитал" | C178: ООО "ИК ВЕЛЕС Капитал" | D178: ООО "ИК ВЕЛЕС Капитал" | E178: ООО "ИК ВЕЛЕС Капитал" | F178: ООО "ИК ВЕЛЕС Капитал" | G178: 3.024397933e+11 | H178: 3.024397933e+11

Sheet November
B2: Клиенты Участников торгов Фондовой биржи ММВБ
B3: 2016-11-30
B6: Динамика количества клиентов за | C6: =B3 -> 2016-11-30
B10: Количество зарегистрированных клиентов в Системе торгов (по состоянию на последний день месяца): | H10: Таблица 1
B11: Группы клиентов | E11: =EDATE(B3,-1) -> 2016-10-30 | F11: =B3 -> 2016-11-30 | G11: Изменение (ед.) | H11: Изменение (%)
B12: Физические лица | E12: =October!F12 -> 1432458 | F12: 1523242 | G12: =F12-E12 -> 90784 | H12: =F12/E12-1 -> 0.06337637823
B13: Юридические лица | E13: =October!F13 -> 30842 | F13: 32385 | G13: =F13-E13 -> 1543 | H13: 0.05002918099
B14: Иностранные лица | E14: =October!F14 -> 13811 | F14: 13790 | G14: -21 | H14: -0.001520527116
B15: Иностранные физические лица | E15: =October!F15 -> 6153 | F15: 6200 | G15: 47 | H15: 0.007638550301
B16: Иностранные юридические лица | E16: =October!F16 -> 7658 | F16: 7590 | G16: -68 | H16: -0.00887960303
B17: Клиенты, передавшие свои средства в ДУ | E17: =October!F17 -> 26822 | F17: 30721 | G17: 3899 | H17: 0.1453657445
B18: Всего | E18: =October!F18 -> 1503933 | F18: 1600138 | G18: 96205 | H18: 0.06396894011
B21: Количество уникальных клиентов в Системе торгов (по состоянию на последний день месяца): | H21: Таблица 2
B22: Группы клиентов | E22: =EDATE(B3,-1) -> 2016-10-30 | F22: =F11 -> 2016-11-30 | G22: Изменение (ед.) | H22: Изменение (%)
B23: Физические лица | E23: =October!F23 -> 1061843 | F23: 1080706 | G23: =F23-E23 -> 18863 | H23: =F23/E23-1 -> 0.01776439643
B24: Юридические лица | E24: =October!F24 -> 18990 | F24: 19037 | G24: =F24-E24 -> 47 | H24: =F24/E24-1 -> 0.002474986835
B25: Иностранные лица | E25: =October!F25 -> 9026 | F25: 9070 | G25: 44 | H25: 0.004874806116
B26: Иностранные физические лица | E26: =October!F26 -> 5589 | F26: 5652 | G26: 63 | H26: 0.01127214171
B27: Иностранные юридические лица | E27: =October!F27 -> 3437 | F27: 3418 | G27: -19 | H27: -0.005528076811
B28: Клиенты, передавшие свои средства в ДУ | E28: =October!F28 -> 7021 | F28: 10116 | G28: 3095 | H28: 0.440820396
B29: Всего | E29: =October!F29 -> 1096880 | F29: 1118929 | G29: 22049 | H29: 0.02010156079
B32: Количество активных клиентов в Системе торгов (совершивших в течение месяца хотя бы одну сделку): | H32: Таблица 3
B33: Группы клиентов | E33: =EDATE(B3,-1) -> 2016-10-30 | F33: =F11 -> 2016-11-30 | G33: Изменение (ед.) | H33: Изменение (%)
B34: Физические лица | E34: =October!F34 -> 75984 | F34: 85263 | G34: =F34-E34 -> 9279 | H34: =F34/E34-1 -> 0.1221178143
B35: Юридические лица | E35: =October!F35 -> 1066 | F35: 1065 | G35: -1 | H35: -0.0009380863039
B36: Иностранные лица | E36: =October!F36 -> 654 | F36: 708 | G36: 54 | H36: 0.08256880734
B37: Иностранные физические лица | E37: =October!F37 -> 334 | F37: 393 | G37: 59 | H37: 0.1766467066
B38: Иностранные юридические лица | E38: =October!F38 -> 320 | F38: 315 | G38: -5 | H38: -0.015625
B39: Клиенты, передавшие свои средства в ДУ | E39: =October!F39 -> 3423 | F39: 6299 | G39: 2876 | H39: 0.8401986561
B40: Всего | E40: =October!F40 -> 81127 | F40: 93335 | G40: 12208 | H40: 0.1504801114
B44: Изменение количества уникальных клиентов - ретроспективные данные
B48: Количество уникальных клиентов в Системе торгов (по состоянию на последний день месяца) (ежегодная статистика): | H48: Таблица 1
B49: Группы клиентов | E49: 2011-12-31 | F49: 2012-12-31 | G49: 2013-12-31 | H49: 2014-12-31 | I49: 2015-12-31
B50: Физические лица | E50: 772175 | F50: 805549 | G50: 881844 | H50: 944559 | I50: 1006751
B51: Юридические лица | E51: 16850 | F51: 17821 | G51: 19539 | H51: 20178 | I51: 20753
B52: Иностранные лица | E52: 5058 | F52: 5876 | G52: 6957 | H52: 7486 | I52: 8729
B53: Клиенты, передавшие свои средства в ДУ | E53: 5242 | F53: 5261 | G53: 5182 | H53: 5142 | I53: 3836
B54: Всего | E54: 799325 | F54: 834507 | G54: 913522 | H54: 977365 | I54: 1040069
B82: Количество уникальных клиентов в Системе торгов (по состоянию на последний день месяца) (за последние 6 месяцев): | H82: Таблица 2
B83: Группы клиентов | C83: =EDATE(D83,-1) -> 2016-06-30 | D83: =EDATE(E83,-1) -> 2016-07-30 | E83: =EDATE(F83,-1) -> 2016-08-30 | F83: =EDATE(G83,-1) -> 2016-09-30 | G83: =EDATE(H83,-1) -> 2016-10-30 | H83: =EDATE(E11,1) -> 2016-11-30
B84: Физические лица | C84: 1028991 | D84: 1033667 | E84: 1040684 | F84: 1049230 | G84: 1061843 | H84: 1080706
B85: Юридические лица | C85: 19118 | D85: 19019 | E85: 19083 | F85: 19110 | G85: 18990 | H85: 19037
B86: Иностранные лица | C86: 9251 | D86: 8797 | E86: 8850 | F86: 8966 | G86: 9026 | H86: 9070
B87: Клиенты, передавшие свои средства в ДУ | C87: 1412 | D87: 1620 | E87: 2017 | F87: 2602 | G87: 7021 | H87: 10116
B88: Всего | C88: 1058772 | D88: 1063103 | E88: 1070634 | F88: 1079908 | G88: 1096880 | H88: 1118929
B124: Дополнительные показатели за | C124: =B3 -> 2016-11-30
H127: Таблица 1
B128: Участники торгов | G128: Абсолютные показатели
B129: Количество Участников торгов, имеющих активных клиентов | G129: 344
B133: Списки ведущих операторов фондового рынка - клиенты Участников торгов за | F133: =C6 -> 2016-11-30
B136: Ведущие операторы рынка – число зарегистрированных клиентов | H136: Таблица 1
B137: (по общему количеству уникальных клиентов всех типов, зарегистрированных в системе торгов биржи, в том числе в течение месяца)
B138: Наименование Участника торгов | G138: Количество клиентов
B139: ВТБ 24 (ПАО) | C139: ВТБ 24 (ПАО) | D139: ВТБ 24 (ПАО) | E139: ВТБ 24 (ПАО) | F139: ВТБ 24 (ПАО) | G139: 246199 | H139: 246199
B140: Сбербанк | C140: Сбербанк | D140: Сбербанк | E140: Сбербанк | F140: Сбербанк | G140: 192901 | H140: 192901
B141: ФГ БКС | C141: ФГ БКС | D141: ФГ БКС | E141: ФГ БКС | F141: ФГ БКС | G141: 171849 | H141: 171849
B142: АО "ФИНАМ" | C142: АО "ФИНАМ" | D142: АО "ФИНАМ" | E142: АО "ФИНАМ" | F142: АО "ФИНАМ" | G142: 158407 | H142: 158407
B143: ФГ "ОТКРЫТИЕ" | C143: ФГ "ОТКРЫТИЕ" | D143: ФГ "ОТКРЫТИЕ" | E143: ФГ "ОТКРЫТИЕ" | F143: ФГ "ОТКРЫТИЕ" | G143: 91393 | H143: 91393
B144: АО "АЛЬФА-БАНК" | C144: АО "АЛЬФА-БАНК" | D144: АО "АЛЬФА-БАНК" | E144: АО "АЛЬФА-БАНК" | F144: АО "АЛЬФА-БАНК" | G144: 61421 | H144: 61421
B145: ООО "АТОН" | C145: ООО "АТОН" | D145: ООО "АТОН" | E145: ООО "АТОН" | F145: ООО "АТОН" | G145: 49462 | H145: 49462
B146: АЛОР БРОКЕР | C146: АЛОР БРОКЕР | D146: АЛОР БРОКЕР | E146: АЛОР БРОКЕР | F146: АЛОР БРОКЕР | G146: 33118 | H146: 33118
B147: КИТ Финанс (ООО) | C147: КИТ Финанс (ООО) | D147: КИТ Финанс (ООО) | E147: КИТ Финанс (ООО) | F147: КИТ Финанс (ООО) | G147: 21704 | H147: 21704
B148: ООО "Инвестиционная палата" | C148: ООО "Инвестиционная палата" | D148: ООО "Инвестиционная палата" | E148: ООО "Инвестиционная палата" | F148: ООО "Инвестиционная палата" | G148: 19859 | H148: 19859
B151: Ведущие операторы рынка – число активных клиентов | H151: Таблица 2
B152: (по количеству уникальных клиентов, совершивших хотя бы одну сделку за месяц)
B153: Наименование Участника торгов | G153: Количество клиентов
B154: Сбербанк | C154: Сбербанк | D154: Сбербанк | E154: Сбербанк | F154: Сбербанк | G154: 14460 | H154: 14460
B155: АО "ФИНАМ" | C155: АО "ФИНАМ" | D155: АО "ФИНАМ" | E155: АО "ФИНАМ" | F155: АО "ФИНАМ" | G155: 13882 | H155: 13882
B156: ФГ БКС | C156: ФГ БКС | D156: ФГ БКС | E156: ФГ БКС | F156: ФГ БКС | G156: 13372 | H156: 13372
B157: ВТБ 24 (ПАО) | C157: ВТБ 24 (ПАО) | D157: ВТБ 24 (ПАО) | E157: ВТБ 24 (ПАО) | F157: ВТБ 24 (ПАО) | G157: 11306 | H157: 11306
B158: ФГ "ОТКРЫТИЕ" | C158: ФГ "ОТКРЫТИЕ" | D158: ФГ "ОТКРЫТИЕ" | E158: ФГ "ОТКРЫТИЕ" | F158: ФГ "ОТКРЫТИЕ" | G158: 10532 | H158: 10532
B159: ООО УК "Альфа-Капитал" | C159: ООО УК "Альфа-Капитал" | D159: ООО УК "Альфа-Капитал" | E159: ООО УК "Альфа-Капитал" | F159: ООО УК "Альфа-Капитал" | G159: 5354 | H159: 5354
B160: АО "АЛЬФА-БАНК" | C160: АО "АЛЬФА-БАНК" | D160: АО "АЛЬФА-БАНК" | E160: АО "АЛЬФА-БАНК" | F160: АО "АЛЬФА-БАНК" | G160: 4221 | H160: 4221
B161: ООО "АТОН" | C161: ООО "АТОН" | D161: ООО "АТОН" | E161: ООО "АТОН" | F161: ООО "АТОН" | G161: 3320 | H161: 3320
B162: Банк ГПБ (АО) | C162: Банк ГПБ (АО) | D162: Банк ГПБ (АО) | E162: Банк ГПБ (АО) | F162: Банк ГПБ (АО) | G162: 2553 | H162: 2553
B163: ПАО "Промсвязьбанк" | C163: ПАО "Промсвязьбанк" | D163: ПАО "Промсвязьбанк" | E163: ПАО "Промсвязьбанк" | F163: ПАО "Промсвязьбанк" | G163: 2030 | H163: 2030
B166: Ведущие операторы рынка – объем клиентских операций | H166: Таблица 3
B167: (по стоимостному объему сделок, заключенных в интересах клиентов за месяц)
B168: Наименование Участника торгов | G168: Торговый оборот, руб.
B169: ФГ "ОТКРЫТИЕ" | C169: ФГ "ОТКРЫТИЕ" | D169: ФГ "ОТКРЫТИЕ" | E169: ФГ "ОТКРЫТИЕ" | F169: ФГ "ОТКРЫТИЕ" | G169: 1.764627707e+12 | H169: 1.764627707e+12
B170: ФГ БКС | C170: ФГ БКС | D170: ФГ БКС | E170: ФГ БКС | F170: ФГ БКС | G170: 1518251528967 | H170: 1518251528967
B171: ООО "Ренессанс Брокер" | C171: ООО "Ренессанс Брокер" | D171: ООО "Ренессанс Брокер" | E171: ООО "Ренессанс Брокер" | F171: ООО "Ренессанс Брокер" | G171: 1.158912362e+12 | H171: 1.158912362e+12
B172: Сбербанк | C172: Сбербанк | D172: Сбербанк | E172: Сбербанк | F172: Сбербанк | G172: 5.519275397e+11 | H172: 5.519275397e+11
B173: ПАО "Совкомбанк" | C173: ПАО "Совкомбанк" | D173: ПАО "Совкомбанк" | E173: ПАО "Совкомбанк" | F173: ПАО "Совкомбанк" | G173: 5.122903593e+11 | H173: 5.122903593e+11
B174: АО "ФИНАМ" | C174: АО "ФИНАМ" | D174: АО "ФИНАМ" | E174: АО "ФИНАМ" | F174: АО "ФИНАМ" | G174: 4.489424754e+11 | H174: 4.489424754e+11
B175: ПАО "Промсвязьбанк" | C175: ПАО "Промсвязьбанк" | D175: ПАО "Промсвязьбанк" | E175: ПАО "Промсвязьбанк" | F175: ПАО "Промсвязьбанк" | G175: 4.258583132e+11 | H175: 4.258583132e+11
B176: ООО "ИФК "МЕТРОПОЛЬ" | C176: ООО "ИФК "МЕТРОПОЛЬ" | D176: ООО "ИФК "МЕТРОПОЛЬ" | E176: ООО "ИФК "МЕТРОПОЛЬ" | F176: ООО "ИФК "МЕТРОПОЛЬ" | G176: 4.246362163e+11 | H176: 4.246362163e+11
B177: ООО "ИК ВЕЛЕС Капитал" | C177: ООО "ИК ВЕЛЕС Капитал" | D177: ООО "ИК ВЕЛЕС Капитал" | E177: ООО "ИК ВЕЛЕС Капитал" | F177: ООО "ИК ВЕЛЕС Капитал" | G177: 3.704925224e+11 | H177: 3.704925224e+11
B178: ООО "РОНИН" | C178: ООО "РОНИН" | D178: ООО "РОНИН" | E178: ООО "РОНИН" | F178: ООО "РОНИН" | G178: 3.425064319e+11 | H178: 3.425064319e+11

Sheet December
B2: Клиенты Участников торгов Фондовой биржи ММВБ
B3: 2016-12-31
B6: Динамика количества клиентов за | C6: =B3 -> 2016-12-31
B10: Количество зарегистрированных клиентов в Системе торгов (по состоянию на последний день месяца): | H10: Таблица 1
B11: Группы клиентов | E11: =EDATE(B3,-1) -> 2016-11-30 | F11: =B3 -> 2016-12-31 | G11: Изменение (ед.) | H11: Изменение (%)
B12: Физические лица | E12: =November!F12 -> 1523242 | F12: 1499778 | G12: =F12-E12 -> -23464 | H12: =F12/E12-1 -> -0.01540398702
B13: Юридические лица | E13: =November!F13 -> 32385 | F13: 30427 | G13: =F13-E13 -> -1958 | H13: -0.06046008955
B14: Иностранные лица | E14: =November!F14 -> 13790 | F14: 13937 | G14: 147 | H14: 0.01065989848
B15: Иностранные физические лица | E15: =November!F15 -> 6200 | F15: 6346 | G15: 146 | H15: 0.0235483871
B16: Иностранные юридические лица | E16: =November!F16 -> 7590 | F16: 7591 | G16: 1 | H16: 0.0001317523057
B17: Клиенты, передавшие свои средства в ДУ | E17: =November!F17 -> 30721 | F17: 31549 | G17: 828 | H17: 0.02695224765
B18: Всего | E18: =November!F18 -> 1600138 | F18: 1575691 | G18: -24447 | H18: -0.01527805727
B21: Количество уникальных клиентов в Системе торгов (по состоянию на последний день месяца): | H21: Таблица 2
B22: Группы клиентов | E22: =EDATE(B3,-1) -> 2016-11-30 | F22: =F11 -> 2016-12-31 | G22: Изменение (ед.) | H22: Изменение (%)
B23: Физические лица | E23: =November!F23 -> 1080706 | F23: 1102966 | G23: =F23-E23 -> 22260 | H23: =F23/E23-1 -> 0.02059764635
B24: Юридические лица | E24: =November!F24 -> 19037 | F24: 18622 | G24: =F24-E24 -> -415 | H24: =F24/E24-1 -> -0.02179965331
B25: Иностранные лица | E25: =November!F25 -> 9070 | F25: 9215 | G25: 145 | H25: 0.01598676957
B26: Иностранные физические лица | E26: =November!F26 -> 5652 | F26: 5793 | G26: 141 | H26: 0.02494692144
B27: Иностранные юридические лица | E27: =November!F27 -> 3418 | F27: 3422 | G27: 4 | H27: 0.001170275015
B28: Клиенты, передавшие свои средства в ДУ | E28: =November!F28 -> 10116 | F28: 10694 | G28: 578 | H28: 0.05713720838
B29: Всего | E29: =November!F29 -> 1118929 | F29: 1141497 | G29: 22568 | H29: 0.02016928688
B32: Количество активных клиентов в Системе торгов (совершивших в течение месяца хотя бы одну сделку): | H32: Таблица 3
B33: Группы клиентов | E33: =EDATE(B3,-1) -> 2016-11-30 | F33: =F11 -> 2016-12-31 | G33: Изменение (ед.) | H33: Изменение (%)
B34: Физические лица | E34: =November!F34 -> 85263 | F34: 95743 | G34: =F34-E34 -> 10480 | H34: =F34/E34-1 -> 0.1229138079
B35: Юридические лица | E35: =November!F35 -> 1065 | F35: 1182 | G35: 117 | H35: 0.1098591549
B36: Иностранные лица | E36: =November!F36 -> 708 | F36: 735 | G36: 27 | H36: 0.03813559322
B37: Иностранные физические лица | E37: =November!F37 -> 393 | F37: 402 | G37: 9 | H37: 0.02290076336
B38: Иностранные юридические лица | E38: =November!F38 -> 315 | F38: 333 | G38: 18 | H38: 0.05714285714
B39: Клиенты, передавшие свои средства в ДУ | E39: =November!F39 -> 6299 | F39: 3524 | G39: -2775 | H39: -0.4405461184
B40: Всего | E40: =November!F40 -> 93335 | F40: 101184 | G40: 7849 | H40: 0.08409492688
B44: Изменение количества уникальных клиентов - ретроспективные данные
B48: Количество уникальных клиентов в Системе торгов (по состоянию на последний день месяца) (ежегодная статистика): | H48: Таблица 1
B49: Группы клиентов | E49: 2012-12-31 | F49: 2013-12-31 | G49: 2014-12-31 | H49: 2015-12-31 | I49: 2016-12-31
B50: Физические лица | E50: 805549 | F50: 881844 | G50: 944559 | H50: 1006751 | I50: 1102966
B51: Юридические лица | E51: 17821 | F51: 19539 | G51: 20178 | H51: 20753 | I51: 18622
B52: Иностранные лица | E52: 5876 | F52: 6957 | G52: 7486 | H52: 8729 | I52: 9215
B53: Клиенты, передавшие свои средства в ДУ | E53: 5261 | F53: 5182 | G53: 5142 | H53: 3836 | I53: 10694
B54: Всего | E54: 834507 | F54: 913522 | G54: 977365 | H54: 1040069 | I54: 1141497
B82: Количество уникальных клиентов в Системе торгов (по состоянию на последний день месяца) (за последние 6 месяцев): | H82: Таблица 2
B83: Группы клиентов | C83: =EDATE(D83,-1) -> 2016-07-30 | D83: =EDATE(E83,-1) -> 2016-08-30 | E83: =EDATE(F83,-1) -> 2016-09-30 | F83: =EDATE(G83,-1) -> 2016-10-30 | G83: =EDATE(H83,-1) -> 2016-11-30 | H83: =EDATE(E11,1) -> 2016-12-30
B84: Физические лица | C84: 1033667 | D84: 1040684 | E84: 1049230 | F84: 1061843 | G84: 1080706 | H84: 1102966
B85: Юридические лица | C85: 19019 | D85: 19083 | E85: 19110 | F85: 18990 | G85: 19037 | H85: 18622
B86: Иностранные лица | C86: 8797 | D86: 8850 | E86: 8966 | F86: 9026 | G86: 9070 | H86: 9215
B87: Клиенты, передавшие свои средства в ДУ | C87: 1620 | D87: 2017 | E87: 2602 | F87: 7021 | G87: 10116 | H87: 10694
B88: Всего | C88: 1063103 | D88: 1070634 | E88: 1079908 | F88: 1096880 | G88: 1118929 | H88: 1141497
B124: Дополнительные показатели за | C124: =B3 -> 2016-12-31
H127: Таблица 1
B128: Участники торгов | G128: Абсолютные показатели
B129: Количество Участников торгов, имеющих активных клиентов | G129: 351
B133: Списки ведущих операторов фондового рынка - клиенты Участников торгов за | F133: =C6 -> 2016-12-31
B136: Ведущие операторы рынка – число зарегистрированных клиентов | H136: Таблица 1
B137: (по общему количеству уникальных клиентов всех типов, зарегистрированных в системе торгов биржи, в том числе в течение месяца)
B138: Наименование Участника торгов | G138: Количество клиентов
B139: ВТБ 24 (ПАО) | C139: ВТБ 24 (ПАО) | D139: ВТБ 24 (ПАО) | E139: ВТБ 24 (ПАО) | F139: ВТБ 24 (ПАО) | G139: 249474 | H139: 249474
B140: Сбербанк | C140: Сбербанк | D140: Сбербанк | E140: Сбербанк | F140: Сбербанк | G140: 196634 | H140: 196634
B141: ФГ БКС | C141: ФГ БКС | D141: ФГ БКС | E141: ФГ БКС | F141: ФГ БКС | G141: 181728 | H141: 181728
B142: АО "ФИНАМ" | C142: АО "ФИНАМ" | D142: АО "ФИНАМ" | E142: АО "ФИНАМ" | F142: АО "ФИНАМ" | G142: 160378 | H142: 160378
B143: ФГ "ОТКРЫТИЕ" | C143: ФГ "ОТКРЫТИЕ" | D143: ФГ "ОТКРЫТИЕ" | E143: ФГ "ОТКРЫТИЕ" | F143: ФГ "ОТКРЫТИЕ" | G143: 94369 | H143: 94369
B144: АО "АЛЬФА-БАНК" | C144: АО "АЛЬФА-БАНК" | D144: АО "АЛЬФА-БАНК" | E144: АО "АЛЬФА-БАНК" | F144: АО "АЛЬФА-БАНК" | G144: 61471 | H144: 61471
B145: ООО "АТОН" | C145: ООО "АТОН" | D145: ООО "АТОН" | E145: ООО "АТОН" | F145: ООО "АТОН" | G145: 49755 | H145: 49755
B146: АЛОР БРОКЕР | C146: АЛОР БРОКЕР | D146: АЛОР БРОКЕР | E146: АЛОР БРОКЕР | F146: АЛОР БРОКЕР | G146: 33250 | H146: 33250
B147: КИТ Финанс (АО) | C147: КИТ Финанс (АО) | D147: КИТ Финанс (АО) | E147: КИТ Финанс (АО) | F147: КИТ Финанс (АО) | G147: 21868 | H147: 21868
B148: ООО "Инвестиционная палата" | C148: ООО "Инвестиционная палата" | D148: ООО "Инвестиционная палата" | E148: ООО "Инвестиционная палата" | F148: ООО "Инвестиционная палата" | G148: 19859 | H148: 19859
B151: Ведущие операторы рынка – число активных клиентов | H151: Таблица 2
B152: (по количеству уникальных клиентов, совершивших хотя бы одну сделку за месяц)
B153: Наименование Участника торгов | G153: Количество клиентов
B154: Сбербанк | C154: Сбербанк | D154: Сбербанк | E154: Сбербанк | F154: Сбербанк | G154: 16198 | H154: 16198
B155: АО "ФИНАМ" | C155: АО "ФИНАМ" | D155: АО "ФИНАМ" | E155: АО "ФИНАМ" | F155: АО "ФИНАМ" | G155: 15909 | H155: 15909
B156: ФГ БКС | C156: ФГ БКС | D156: ФГ БКС | E156: ФГ БКС | F156: ФГ БКС | G156: 15484 | H156: 15484
B157: ВТБ 24 (ПАО) | C157: ВТБ 24 (ПАО) | D157: ВТБ 24 (ПАО) | E157: ВТБ 24 (ПАО) | F157: ВТБ 24 (ПАО) | G157: 12899 | H157: 12899
B158: ФГ "ОТКРЫТИЕ" | C158: ФГ "ОТКРЫТИЕ" | D158: ФГ "ОТКРЫТИЕ" | E158: ФГ "ОТКРЫТИЕ" | F158: ФГ "ОТКРЫТИЕ" | G158: 12290 | H158: 12290
B159: АО "АЛЬФА-БАНК" | C159: АО "АЛЬФА-БАНК" | D159: АО "АЛЬФА-БАНК" | E159: АО "АЛЬФА-БАНК" | F159: АО "АЛЬФА-БАНК" | G159: 4561 | H159: 4561
B160: ООО "АТОН" | C160: ООО "АТОН" | D160: ООО "АТОН" | E160: ООО "АТОН" | F160: ООО "АТОН" | G160: 3298 | H160: 3298
B161: Банк ГПБ (АО) | C161: Банк ГПБ (АО) | D161: Банк ГПБ (АО) | E161: Банк ГПБ (АО) | F161: Банк ГПБ (АО) | G161: 2912 | H161: 2912
B162: ООО УК "Альфа-Капитал" | C162: ООО УК "Альфа-Капитал" | D162: ООО УК "Альфа-Капитал" | E162: ООО УК "Альфа-Капитал" | F162: ООО УК "Альфа-Капитал" | G162: 2631 | H162: 2631
B163: ПАО "Промсвязьбанк" | C163: ПАО "Промсвязьбанк" | D163: ПАО "Промсвязьбанк" | E163: ПАО "Промсвязьбанк" | F163: ПАО "Промсвязьбанк" | G163: 2384 | H163: 2384
B166: Ведущие операторы рынка – объем клиентских операций | H166: Таблица 3
B167: (по стоимостному объему сделок, заключенных в интересах клиентов за месяц)
B168: Наименование Участника торгов | G168: Торговый оборот, руб.
B169: ФГ "ОТКРЫТИЕ" | C169: ФГ "ОТКРЫТИЕ" | D169: ФГ "ОТКРЫТИЕ" | E169: ФГ "ОТКРЫТИЕ" | F169: ФГ "ОТКРЫТИЕ" | G169: 1.78013532e+12 | H169: 1.78013532e+12
B170: ФГ БКС | C170: ФГ БКС | D170: ФГ БКС | E170: ФГ БКС | F170: ФГ БКС | G170: 1.599039883e+12 | H170: 1.599039883e+12
B171: ООО "Ренессанс Брокер" | C171: ООО "Ренессанс Брокер" | D171: ООО "Ренессанс Брокер" | E171: ООО "Ренессанс Брокер" | F171: ООО "Ренессанс Брокер" | G171: 1.006066972e+12 | H171: 1.006066972e+12
B172: Сбербанк | C172: Сбербанк | D172: Сбербанк | E172: Сбербанк | F172: Сбербанк | G172: 6.380354802e+11 | H172: 6.380354802e+11
B173: ООО "БК РЕГИОН" | C173: ООО "БК РЕГИОН" | D173: ООО "БК РЕГИОН" | E173: ООО "БК РЕГИОН" | F173: ООО "БК РЕГИОН" | G173: 6.379377018e+11 | H173: 6.379377018e+11
B174: ООО "ИК ВЕЛЕС Капитал" | C174: ООО "ИК ВЕЛЕС Капитал" | D174: ООО "ИК ВЕЛЕС Капитал" | E174: ООО "ИК ВЕЛЕС Капитал" | F174: ООО "ИК ВЕЛЕС Капитал" | G174: 5.824383714e+11 | H174: 5.824383714e+11
B175: ПАО "Совкомбанк" | C175: ПАО "Совкомбанк" | D175: ПАО "Совкомбанк" | E175: ПАО "Совкомбанк" | F175: ПАО "Совкомбанк" | G175: 5.620260631e+11 | H175: 5.620260631e+11
B176: АО "ФИНАМ" | C176: АО "ФИНАМ" | D176: АО "ФИНАМ" | E176: АО "ФИНАМ" | F176: АО "ФИНАМ" | G176: 4.911706275e+11 | H176: 4.911706275e+11
B177: ООО "УНИВЕР Капитал" | C177: ООО "УНИВЕР Капитал" | D177: ООО "УНИВЕР Капитал" | E177: ООО "УНИВЕР Капитал" | F177: ООО "УНИВЕР Капитал" | G177: 4.676181829e+11 | H177: 4.676181829e+11
B178: ООО "ИФК "МЕТРОПОЛЬ" | C178: ООО "ИФК "МЕТРОПОЛЬ" | D178: ООО "ИФК "МЕТРОПОЛЬ" | E178: ООО "ИФК "МЕТРОПОЛЬ" | F178: ООО "ИФК "МЕТРОПОЛЬ" | G178: 4.260555545e+11 | H178: 4.260555545e+11
